Cogmind - Beta 16 @@@ ROGUE MODE // 2025.11.08 @ 06:03:03 Player: Naughtyusername Result: Self-destructed Performance ------------- Evolutions (9) 4500 Regions Visited (36) 7200 Robots Destroyed (412) 2060 Value Destroyed (21612) 21612 Prototype IDs (160) 3200 Alien Tech Used (6) 1200 Bonus (16917) 16917 TOTAL SCORE: 56689 Bonus ------- Pacifist 200 Triggered High Security 500 High Alert Combat Kills 8739 Follower Combat Kills 3219 Network Hubs Disabled 400 Met Data Miner 300 Met Zhirov 300 Met Warlord at Base 500 MAIN.C Attacked Warlord 500 Warlord Defense Kills 2794 Built Enhanced Grunts 300 A7 Reached Mainframe 300 Met R17 at Cetus 500 Met Warlord at Research 2000 Scanned by Researcher 500 Friendly Fire -4135 Cogmind --------- Core Integrity 783/1600 Matter 300/300 Energy 280/280 System Corruption 12% Temperature Cool (0) Movement Hovering (36) Location -1/Access Parts ------- > --- POWER (3) -------- Light Quantum Reactor Light Quantum Reactor > --- PROPULSION (8) --- Improved Gyrokinetic Inverter Improved Gyrokinetic Inverter Improved Gyrokinetic Inverter Experimental Gyrokinetic Inverter Combat Linear Gravjet Combat Linear Gravjet Concept Gyrokinetic System Concept Gyrokinetic System > --- UTILITY (11) ----- Concept Phasing Heat Sink Concept Antigrav Storage Unit Spectral Analyzer Experimental Active Sensor Suite Concept Melee Reflex Suite Concept Weapon Articulator Experimental Armor Integrity Analyzer Concept Cloak Mesh Concept Impact Drone Bay (0/6) Concept Impact Drone Bay (0/6) > --- WEAPON (3) ------- Multirail > --- INVENTORY (25) --- Concept Chromion Battery (800) Weapon Mount Femtoactuators Advanced Actuator Array Advanced Transmission Jammer Advanced Reaction Control System Concept Reaction Jets Concept Reaction Jets Concept Phase Shift Module Concept Cloak Mesh Improved Utility Shielding Experimental EM Disruption Field Concept Energy Mantle Concept Energy Mantle Concept Antimissile System Long-range Tractor Beam Peak State ------------ > --- POWER ------------ Particle Reactor Quantum Reactor Quantum Reactor > --- PROPULSION ------- Cooled Linear Gravjet Combat Linear Gravjet Experimental Antigrav System Gravjet Array Concept Combat Aerolev Unit Concept Gyrokinetic System Concept Gyrokinetic System > --- UTILITY ---------- Concept Phasing Heat Sink Concept Antigrav Storage Unit Spectral Analyzer Experimental Active Sensor Suite Concept Melee Reflex Suite Concept Weapon Articulator Experimental Armor Integrity Analyzer Experimental Reaction Control System Concept Cloak Mesh Concept Cloak Mesh > --- WEAPON ----------- Enhanced Hardcell Cannon Ionic Axe Force Lance > --- INVENTORY -------- Cooled Gravmag System Improved Gyrokinetic Inverter Improved Gyrokinetic Inverter Improved Gyrokinetic Inverter Experimental Gyrokinetic Inverter Cooled Linear Gravjet Combat Linear Gravjet Concept Chromion Battery Weapon Mount Femtoactuators Advanced Actuator Array Advanced Transmission Jammer Advanced Reaction Control System Concept Reaction Jets Concept Reaction Jets Concept Phase Shift Module Improved Utility Shielding Experimental EM Disruption Field Concept Energy Mantle Concept Energy Mantle Concept Antimissile System Long-range Tractor Beam Concept Impact Drone Bay Concept Impact Drone Bay Gamma Rifle [Rating: 274] Favorites ----------- Power Mini Fusion Reactor Engine Light Ion Engine Power Core Micro Nuclear Core Reactor Mini Fusion Reactor Propulsion Improved Diametric Drive Treads Light Treads Hover Unit Concept Gyrokinetic System Flight Unit Improved Diametric Drive Utility Enhanced Optical Array Device Advanced Power Amplifier Storage Concept Antigrav Storage Unit Processor Enhanced Optical Array Hackware Advanced Hacking Suite Protection Experimental Propulsion Shielding Weapon Tri-rail Accelerator Energy Gun Gamma Rifle Energy Cannon Cooled Plasma Cannon Ballistic Gun Light Assault Rifle Ballistic Cannon Tri-rail Accelerator Launcher Concept Rapid Grenade Launcher Special Weapon Remote Datajack Impact Weapon Heavy Hammer Slashing Weapon Power Sword Piercing Weapon Experimental Jetlance Special Melee Weapon Improved Datajack Build | -11 -10 -10 -9 -8 -7 -7 -7 -7 -7 -7 -6 -6 -6 -6 -6 -6 -6 -6 -5 -5 -5 -5 -4 -4 -4 -4 -4 -4 -4 -3 -3 -3 -3 -2 -2 -1 ------- Run | Yrd Mat Min Mat Mat Fac Was Fac Low Low Dat Pro Fac Was Fac Ext Cet Arc Hub Fac Upp Upp War Pro Fac Was Fac Upp Upp Zhi Pro Res Qua Frg Res Tes Acc Slots Evolved 18 | . . . 2 2 2 . . . . . . 2 . . . . . . 2 . . . . 2 . . . . . . 2 . . 2 . 2 Power 2 | . . . . . . . . . . . . . . . . . . . . . . . . . . . . . . . . . . 1 . 1 Propulsion 6 | . . . 1 1 1 . . . . . . . . . . . . . . . . . . 1 . . . . . . 2 . . . . . Utility 9 | . . . 1 1 1 . . . . . . 2 . . . . . . 2 . . . . . . . . . . . . . . 1 . 1 Weapon 1 | . . . . . . . . . . . . . . . . . . . . . . . . 1 . . . . . . . . . . . . Parts Attached 335 | 6 3 2 5 7 2 2 22 2 1 1 1 18 5 16 6 5 . 4 17 1 1 9 . 23 . 12 2 . 4 1 13 4 73 31 8 28 Power 30 | 1 1 . 1 . . . 2 . 1 . . . 2 1 . . . 1 1 . . . . . . . . . 1 . . 1 6 2 . 9 Engine 4 | 1 1 . 1 . . . . . . . . . . . . . . 1 . . . . . . . . . . . . . . . . . . Core 5 | . . . . . . . 2 . 1 . . . 1 . . . . . . . . . . . . . . . . . . . 1 . . . Reactor 21 | . . . . . . . . . . . . . 1 1 . . . . 1 . . . . . . . . . 1 . . 1 5 2 . 9 Propulsion 88 | 2 2 1 1 2 1 . 7 . . . . 7 . 4 . . . 1 6 . . 1 . 7 . 4 . . . . 3 1 27 5 1 5 Treads 2 | 2 . . . . . . . . . . . . . . . . . . . . . . . . . . . . . . . . . . . . Leg . | . . . . . . . . . . . . . . . . . . . . . . . . . . . . . . . . . . . . . Wheel . | . . . . . . . . . . . . . . . . . . . . . . . . . . . . . . . . . . . . . Hover 29 | . . . . . . . . . . . . . . . . . . . . . . . . . . . . . . . . . 18 5 1 5 Flight 57 | . 2 1 1 2 1 . 7 . . . . 7 . 4 . . . 1 6 . . 1 . 7 . 4 . . . . 3 1 9 . . . Utility 158 | 1 . 1 . 3 1 1 9 1 . . 1 10 3 8 5 5 . 2 9 1 1 6 . 11 . 7 1 . 3 1 7 1 30 17 4 8 Device 75 | . . 1 . . . 1 3 1 . . . 1 1 4 1 2 . 2 2 . 1 3 . 3 . 2 . . 1 1 4 1 18 14 2 6 Storage 6 | 1 . . . . 1 . . . . . . 1 . . . . . . . . . . . 1 . . . . . . . . 2 . . . Processor 32 | . . . . 3 . . . . . . . 2 1 1 4 . . . 3 1 . 3 . 2 . 1 . . 1 . 3 . 5 1 . 1 Hackware 21 | . . . . . . . 4 . . . . 4 1 1 . 1 . . 4 . . . . 3 . 3 . . . . . . . . . . Protection 24 | . . . . . . . 2 . . . 1 2 . 2 . 2 . . . . . . . 2 . 1 1 . 1 . . . 5 2 2 1 Artifact . | . . . . . . . . . . . . . . . . . . . . . . . . . . . . . . . . . . . . . Weapon 59 | 2 . . 3 2 . 1 4 1 . 1 . 1 . 3 1 . . . 1 . . 2 . 5 . 1 1 . . . 3 1 10 7 3 6 Energy Gun 5 | 1 . . . . . . . . . . . . . . . . . . . . . 1 . . . . . . . . . . 1 . . 2 Energy Cannon 6 | . . . . . . . . . . . . 1 . . . . . . . . . 1 . . . . . . . . . 1 . 2 1 . Ballistic Gun 6 | 1 . . 1 . . 1 1 . . . . . . . . . . . . . . . . . . . . . . . . . . . 1 1 Ballistic Cannon 6 | . . . . . . . . . . . . . . . 1 . . . 1 . . . . . . . . . . . . . 1 1 1 1 Launcher 11 | . . . 1 1 . . . 1 . . . . . 1 . . . . . . . . . 1 . 1 . . . . 3 . 1 . . 1 Special Weapon 1 | . . . . . . . . . . 1 . . . . . . . . . . . . . . . . . . . . . . . . . . Impact Weapon 1 | . . . 1 . . . . . . . . . . . . . . . . . . . . . . . . . . . . . . . . . Slashing Weapon 14 | . . . . 1 . . 2 . . . . . . 1 . . . . . . . . . 2 . . . . . . . . 4 4 . . Piercing Weapon 6 | . . . . . . . . . . . . . . 1 . . . . . . . . . 1 . . . . . . . . 3 . . 1 Special Melee Weapon 3 | . . . . . . . 1 . . . . . . . . . . . . . . . . 1 . . 1 . . . . . . . . . Unidentified Prototypes 60 | . . 1 2 . . . 1 . . . . 2 . 4 . 2 . 1 . . . 5 . 6 . 2 1 . 4 . 8 2 6 7 3 3 Corrupted Parts 2 | . . . . . . 1 . . . . . . . . . . . . . . . . . . . . . . . . . . . . . 1 System Corruption 9 | . . . . . . 5 . . . . . . . . . . . . . . . . . . . . . . . . . . . . . 4 Parts Lost 92 | . . . . 1 . . 3 1 . . 3 4 . 1 2 1 . 2 6 1 . . . 2 . 2 . . . 1 . . 35 . . 27 Power 12 | . . . . . . . . . . . . . . . . . . . . . . . . . . . . . . . . . 4 . . 8 Propulsion 29 | . . . . 1 . . 1 . . . 1 1 . . . 1 . 1 4 1 . . . 1 . 1 . . . . . . 9 . . 7 Utility 33 | . . . . . . . 2 1 . . 1 3 . 1 2 . . 1 2 . . . . . . 1 . . . 1 . . 12 . . 6 Weapon 18 | . . . . . . . . . . . 1 . . . . . . . . . . . . 1 . . . . . . . . 10 . . 6 Highest Loss Streak 14 | . . . . 1 . . 1 1 . . 3 5 . 1 2 1 . 1 2 1 . . . 1 . 1 . . . 1 . . 6 . . 14 To Critical Strikes . | . . . . . . . . . . . . . . . . . . . . . . . . . . . . . . . . . . . . . Average Backups 10 | 1 6 7 7 7 7 8 5 4 4 5 5 4 5 4 5 5 5 4 4 5 5 4 5 4 7 9 9 9 9 9 9 9 17 24 24 22 Power . | . 1 1 . . . . . 1 1 1 1 1 . . 1 1 1 1 . . . . . . . . 1 1 1 1 1 1 1 . . . Propulsion 1 | . 3 5 4 2 1 1 . . . 1 1 1 . . . . . . . . . . . . . . . . . . . . 1 2 3 3 Utility 6 | . . . 1 1 2 3 2 2 1 1 1 . 2 2 3 3 3 2 3 3 3 2 3 3 5 7 6 6 5 5 5 4 10 19 19 16 Weapon 1 | . 1 . 1 2 3 3 1 . 1 1 1 1 1 1 1 1 1 1 1 2 2 2 2 1 1 1 2 2 2 1 2 2 1 1 1 1 Tool/Special . | . . . . . . . . . . . . . . . . . . . . . . . . . . . . . . . . . . . . . Unused Backups 54 | . . . . . 1 . 8 1 . . . 1 . 4 . . . . 2 . . 1 . . . 4 . . 1 1 3 2 13 4 3 5 Power 5 | . . . . . . . 1 . . . . . . . . . . . . . . . . . . 1 . . . . . . 2 1 . . Propulsion 7 | . . . . . . . . . . . . 1 . 1 . . . . . . . . . . . 1 . . . 1 1 . 1 1 . . Utility 33 | . . . . . 1 . 6 1 . . . . . 2 . . . . 2 . . 1 . . . 2 . . . . 2 . 6 2 3 5 Weapon 7 | . . . . . . . . . . . . . . 1 . . . . . . . . . . . . . . 1 . . 2 3 . . . Tool/Special 2 | . . . . . . . 1 . . . . . . . . . . . . . . . . . . . . . . . . . 1 . . . Average Slot Usage (%) 88 | . 49 57 67 81 91 100 96 91 92 90 92 86 93 100 90 93 93 96 91 88 88 91 94 90 89 86 84 84 81 84 84 85 84 90 86 83 Reactor 4 | . . . . . . . . . . . . . 1 6 6 6 6 6 5 5 5 5 5 5 5 5 5 5 5 5 4 4 3 8 8 8 Hover 7 | . . . . . . . . . . . . . . . . . . . . . . . . . . . . . . . . . 18 29 30 28 Flight 22 | . 14 28 33 33 33 38 38 38 38 38 38 32 33 33 33 26 26 30 23 23 23 26 29 28 31 28 26 26 26 26 28 28 9 . . . Device 14 | . . . . . 3 8 4 6 16 15 15 16 13 12 6 6 6 8 20 23 23 23 23 20 15 14 14 15 14 20 16 13 12 18 14 19 Storage 2 | . 7 14 11 9 7 7 2 . . . . . 4 . . . . . . . . . . . 5 5 5 5 5 5 4 4 4 4 4 4 Processor 14 | . . . . 16 23 21 9 7 7 7 7 6 7 13 15 25 20 18 15 16 17 16 17 20 21 21 21 21 21 15 16 19 17 9 8 9 Hackware 4 | . . . . . . . 16 16 7 7 7 10 11 13 6 6 13 11 7 5 5 5 5 5 5 4 . . . . . . . . . . Protection 4 | . . . . . . . 3 6 5 7 6 6 6 6 6 6 6 6 4 5 5 5 5 . . . 5 5 5 5 4 4 4 5 7 4 Energy Cannon 1 | . . . . . . . . . . . . 1 6 1 5 6 6 5 4 . . . . . . . . . . . . . . 4 . . Ballistic Cannon 1 | . . . . . . . . . . . . . . . . . . . . 5 5 4 5 4 5 4 5 5 . 5 4 4 . . 2 2 Slashing Weapon 4 | . . . . 3 7 5 7 6 7 5 7 . . 2 6 6 6 6 4 . . . . 4 . 1 . . 2 . 3 4 6 6 7 5 Peak Build Rating 274 | 6 5 13 11 21 30 33 50 53 53 53 56 73 84 95 89 93 92 98 111 112 107 122 121 138 134 137 132 132 136 128 159 164 266 268 261 274 Average Rating 137 | 3 3 4 8 14 24 30 40 49 52 52 53 60 75 82 81 87 92 94 96 105 106 116 121 125 127 126 125 123 117 124 146 150 210 249 252 252 On Entrance 92 | . 3 4 5 9 20 29 33 49 53 53 53 41 68 84 89 87 92 92 93 111 106 107 122 121 132 127 124 125 125 128 125 157 157 188 250 255 Avg Prop Armor Cover (%) 6 | 30 34 . . . 4 3 4 . . . . . . . . . . 12 . . . 9 . 14 . . . . . . . . 6 4 . 3 Naked Turns . | . . . . . . . . . . . . . . . . . . . . . . . . . . . . . . . . . . . . . Heaviest Build 121 | 11 11 6 12 14 14 19 24 25 25 25 32 31 24 29 37 28 26 29 37 37 36 37 36 51 43 53 55 42 45 42 61 59 88 106 114 121 Greatest Support 130 | 40 8 8 12 20 20 20 35 35 35 35 35 35 27 35 29 40 40 47 51 51 44 51 51 60 42 48 42 48 42 48 68 69 130 126 127 129 Greatest Overweight (x) 20 | 3 1 . . . . . . . . . . 1 . . 1 1 . 5 1 1 . 1 . 1 1 1 1 . 1 . . . 20 1 . 1 Average Overweight (x) . | 1 . . . . . . . . . . . . . . . . . . . . . . . . . . . . . . . . . . . . Largest Inventory Capacity 25 | 8 8 8 8 8 8 8 8 5 5 5 5 5 5 5 5 5 5 5 5 5 5 5 5 10 10 10 10 10 10 10 10 10 25 25 25 25 Average Capacity 11 | 7 6 8 8 8 8 8 5 5 5 5 5 5 5 5 5 5 5 5 5 5 5 5 5 5 10 10 10 10 10 10 10 10 19 25 25 25 Most Carried 25 | 4 8 8 8 8 8 8 8 5 5 5 5 5 5 5 5 5 5 5 5 5 5 5 5 6 10 10 10 10 10 10 10 10 25 25 25 25 Average Carried 10 | . 6 7 7 7 7 8 5 4 4 4 4 4 4 4 4 4 5 4 4 5 5 4 5 4 7 9 9 9 9 9 9 9 18 24 24 22 Final Capacity 25 | 5 8 8 8 8 8 8 5 5 5 5 5 5 5 5 5 5 5 5 5 5 5 5 5 10 10 10 10 10 10 10 10 10 25 25 25 25 Final Carried 25 | 4 8 8 8 8 8 8 5 4 5 5 5 5 5 5 5 5 5 4 5 5 5 5 5 6 10 9 10 10 10 10 10 10 24 25 25 16 Class Distribution -------------------- 14% | Sprinter 14% | Machinist-Scout 7% | Scavenger-Ninja 7% | Hacker-Sprinter 7% | Machinist-Sprinter 6% | Scout 5% | Ninja 5% | Commander-Sprinter 5% | Machinist-Ninja 4% | Mutant 3% | Scavenger-Scout 3% | Hacker-Scout 3% | Commander-Mutant Dominant Class ---------------- Mutant | -10/Mines Mutant | -9/Materials Sprinter | -8/Materials Scout | -7/Factory Scout | -7/Waste Hacker-Sprinter | -7/Factory Hacker-Sprinter | -7/Lower Caves Sprinter | -7/Lower Caves Sprinter | -7/Data Miner Sprinter | -6/Proximity Caves Hacker-Sprinter | -6/Factory Hacker-Sprinter | -6/Waste Hacker-Scout | -6/Factory Commander-Sprinter | -6/Extension Commander-Mutant | -6/Cetus Commander-Sprinter | -6/Archives Commander-Sprinter | -6/Hub_04(d) Sprinter | -5/Factory Machinist-Sprinter | -5/Upper Caves Machinist-Sprinter | -5/Upper Caves Machinist-Sprinter | -5/Warlord Scavenger-Sprinter | -4/Proximity Caves Scout | -4/Factory Machinist-Sprinter | -4/Waste Machinist-Scout | -4/Factory Machinist-Scout | -4/Upper Caves Machinist-Scout | -4/Upper Caves Machinist-Scout | -4/Zhirov Machinist-Scout | -3/Proximity Caves Machinist-Ninja | -3/Research Machinist-Ninja | -3/Quarantine Sprinter | -3/Protoforge Scavenger-Ninja | -2/Research Ninja | -2/Testing Ninja | -1/Access Resources | -11 -10 -10 -9 -8 -7 -7 -7 -7 -7 -7 -6 -6 -6 -6 -6 -6 -6 -6 -5 -5 -5 -5 -4 -4 -4 -4 -4 -4 -4 -3 -3 -3 -3 -2 -2 -1 ----------- Run | Yrd Mat Min Mat Mat Fac Was Fac Low Low Dat Pro Fac Was Fac Ext Cet Arc Hub Fac Upp Upp War Pro Fac Was Fac Upp Upp Zhi Pro Res Qua Frg Res Tes Acc Matter Collected 16819 | 52 . 136 32 73 157 363 324 123 162 . 99 317 . 498 185 116 . 199 499 294 145 999 10 1258 184 749 395 48 180 112 989 185 5507 955 290 1184 Remotely 142 | . . . . . . . . . . . . . . . . . . . . . . . . . . . . . . . . . 142 . . . Salvage Created 19792 | . . . 90 62 157 367 490 158 494 . 29 188 . 400 870 81 128 938 820 320 148 1057 . 1603 83 740 340 32 480 86 1358 129 5942 396 414 1392 Parts 796 | . . . 6 8 . . 22 9 18 . 1 7 . 17 30 4 2 28 46 18 7 40 . 59 1 30 4 3 6 8 39 4 289 14 14 62 Haulers Intercepted 33 | . . . . 1 . . 4 . . . . . . 2 . . . 6 1 . . . . 3 . 1 . . . . 10 . . 3 . 2 Recyclers Shooed 4 | . . . . . . . . . . . . . . . 1 . . . . . . . . 1 . . . . . . 2 . . . . . Parts Field Recycled . | . . . . . . . . . . . . . . . . . . . . . . . . . . . . . . . . . . . . . Retrieved Matter . | . . . . . . . . . . . . . . . . . . . . . . . . . . . . . . . . . . . . . Parts Self-Destructed 65 | . . . . . . . . 7 11 . 15 . . . . . . . . 17 . . . . . . 3 2 4 6 . . . . . . Prevented 10 | . . . . . . . . 6 2 . 1 . . . . . . . . . . . . . . . . . . 1 . . . . . . Parts Restored 16 | . . . . . . . . . . . . . . . . . . . . . . . . . . . . . . . . . 14 2 . . Faulty 16 | . . . . . . . . . . . . . . . . . . . . . . . . . . . . . . . . . 14 2 . . Kills | -11 -10 -10 -9 -8 -7 -7 -7 -7 -7 -7 -6 -6 -6 -6 -6 -6 -6 -6 -5 -5 -5 -5 -4 -4 -4 -4 -4 -4 -4 -3 -3 -3 -3 -2 -2 -1 ------- Run | Yrd Mat Min Mat Mat Fac Was Fac Low Low Dat Pro Fac Was Fac Ext Cet Arc Hub Fac Upp Upp War Pro Fac Was Fac Upp Upp Zhi Pro Res Qua Frg Res Tes Acc Combat Hostiles Destroyed 283 | . . . 3 4 . 3 1 7 3 . . 4 . 1 12 . 2 5 20 5 4 21 . 20 . 14 1 . . 5 2 1 115 1 5 24 Melee 90 | . . . . . . . . . 3 . . . . . 10 . . 4 4 . . . . . . . . . . . . . 59 1 2 7 Guns 4 | . . . . . . . . . . . . . . . . . . . . . . . . . . . . . . . . . . . . 4 Cannons 80 | . . . . . . . . . . . . . . . 1 . 2 . . 5 4 21 . 16 . 10 1 . . 2 2 1 14 . 1 . AOE 106 | . . . 3 4 . 3 . 7 . . . 4 . 1 . . . 1 16 . . . . 4 . 4 . . . 3 . . 41 . 2 13 Classes Destroyed 33 | . . . 2 1 3 1 2 2 2 . . . . 1 3 . . 1 1 . 1 6 . . . . . . . 1 . . 5 . . 1 Worker 22 | . . . . . 1 . 3 . . . . . . 6 . . . . 4 . . . . 2 . 1 . . . . . . 3 . . 2 Builder 15 | . . . . . 1 . . . . . . . . 1 . . . . 1 . . . . 5 . 2 . . . . . . 2 . 1 2 Tunneler 4 | . . . . . 1 . 1 . . . . . . 1 . . . . . . . . . 1 . . . . . . . . . . . . Hauler 33 | . . . . 1 . . 4 . . . . . . 2 . . . 6 1 . . . . 3 . 1 . . . . 10 . . 3 . 2 Recycler 16 | . . . 1 . 1 . 1 . . . . 1 . 1 1 . . . 1 . . . . 3 . 2 . . . . 3 . . . . 1 Minesweeper 5 | . . . . . . . . 2 1 . 1 . . . . . . . . . . . . . . . . 1 . . . . . . . . Mechanic 3 | . . . . . . . . . . . . . . . . . . . . . . 1 . . . . . . . . . . 2 . . . Operator 10 | . . . . . . . 2 . . . . . . 2 . . . 1 1 . . . . . . 1 . . . . . 2 . . 1 . Drone 11 | . . . . . . . . . . . . . . . . . . . . . . . . . . . . . . 1 . . 2 . . 8 Watcher 18 | . . . . . . . 1 . . . . . . 3 1 . . . 2 . . . . 3 . 1 . . . . 1 1 2 . . 3 Swarmer 54 | . . . 3 4 . . 1 7 1 . . 4 . . . . . . 9 . . 2 . 5 . 4 . . . 4 . . . . 3 7 Cutter 4 | . . . . . . . . . . . . . . . . . . . 4 . . . . . . . . . . . . . . . . . Saboteur 7 | . . . . . . . . . . . . . . . . . . . . . . . . . . . . . . . . . 7 . . . Grunt 72 | . . . . . . . . . . . . . . . 7 . . 3 3 2 . 10 . 11 . 3 . . . . . 1 27 . 2 3 Brawler 9 | . . . . . . . . . . . . . . . . . . . . . . 1 . . . . . . . . . . 8 . . . Duelist 7 | . . . . . . . . . 1 . . . . . . . . . . 1 . . . . . 1 . . . . . . 4 . . . Protector 4 | . . . . . . . . . . . . . . 1 . . . . . . . 2 . . . . . . . . . . 1 . . . Researcher 8 | . . . . . . . . . . . . . . . . . . . . . . . . . . . . . . . . . 5 . 3 . Sentry 26 | . . . . . . . . . . . . . . . 3 . 2 1 . . . . . 3 . 3 1 . . . 1 . 10 1 . 1 Demolisher 1 | . . . . . . . . . . . . . . . . . . . . . . 1 . . . . . . . . . . . . . . Specialist 2 | . . . . . . . . . . . . . . . . . . . . . . 2 . . . . . . . . . . . . . . Hunter 1 | . . . . . . . . . . . . . . . . . . 1 . . . . . . . . . . . . . . . . . . Programmer 37 | . . . . . . . . . 1 . . . . . . . . . 4 2 . . . 1 . 3 . . . . 1 . 21 . . 4 Q-Series 1 | . . . . . . . . . . . . . . . . . . . . . . . . . . . . . . . . . . . . 1 Behemoth 1 | . . . . . . . . . . . . . . . 1 . . . . . . . . . . . . . . . . . . . . . Compactor 3 | . . . . . . 3 . . . . . . . . . . . . . . . . . . . . . . . . . . . . . . Hotshot 13 | . . . . . . . . . . . . . . . . . . . . . . . . . . . . . . . . . 13 . . . Decapitator 10 | . . . . . . . . . . . . . . . . . . . . . . . . . . . . . . . . . 10 . . . Immortal 4 | . . . . . . . . . . . . . . . . . . . . . . . . . . . . . . . . . 4 . . . Striker 1 | . . . . . . . . . . . . . . . . . . . . . . 1 . . . . . . . . . . . . . . Executioner 3 | . . . . . . . . . . . . . . . . . . . . . . 3 . . . . . . . . . . . . . . Alpha 7 2 | . . . . . . . . . . . . . . . . . . . . . . . . . . . . . . . . . 2 . . . V-Series 6 | . . . . . . . . . . . . . . . . . . . . . . . . . . . . . . . . . 6 . . . Decomposer 3 | . . . . . . . . 1 . . . . . . . . . . . 1 . . . . . . . 1 . . . . . . . . Samaritan 4 | . . . . . . . . 1 2 . . . . . . . . . . 1 . . . . . . . . . . . . . . . . Tinkerer 1 | . . . . . . . . . . . . . . . . . . . . . . . . . . . . . . . . . 1 . . . Thug 2 | . . . . . . . . . . . . . . . . . . . . . 1 1 . . . . . . . . . . . . . . Butcher 1 | . . . . . . . . . . . . . . . 1 . . . . . . . . . . . . . . . . . . . . . Fireman 3 | . . . . . . . . . . . . . . . . . . . . . 3 . . . . . . . . . . . . . . . Best Kill Streak 13 | . . . 4 4 4 3 2 5 2 . 1 4 . 7 3 . 1 6 7 4 4 4 . 10 . 12 1 1 . 4 4 2 13 1 4 11 Combat Bots Only 11 | . . . 3 3 . 3 1 4 2 . . 4 . 1 3 . 1 2 6 4 4 4 . 6 . 6 1 . . 4 1 1 10 1 3 11 Max Kills in Single Turn 7 | . . . 4 2 1 1 1 2 1 . 1 2 . 7 1 1 1 1 6 1 1 1 . 4 . 5 1 1 . 2 1 1 6 1 1 4 Gunslinging . | . . . . . . . . . . . . . . . . . . . . . . . . . . . . . . . . . . . . . Exploded 5 | . . . 3 2 . 1 . 2 . . . 2 . 1 . . . 1 5 . . . . 4 . 4 . . . 2 . . 4 . 1 4 Melee 1 | . . . . . . . . . 1 . . . . . 1 . . 1 1 . . . . . . . . . . . . . 1 1 1 1 Uniques/NPCs Destroyed 1 | . . . . . . . . . . . . . . . . 1 . . . . . . . . . . . . . . . . . . . . A7 (-6/Cetus) Combat | -11 -10 -10 -9 -8 -7 -7 -7 -7 -7 -7 -6 -6 -6 -6 -6 -6 -6 -6 -5 -5 -5 -5 -4 -4 -4 -4 -4 -4 -4 -3 -3 -3 -3 -2 -2 -1 -------- Run | Yrd Mat Min Mat Mat Fac Was Fac Low Low Dat Pro Fac Was Fac Ext Cet Arc Hub Fac Upp Upp War Pro Fac Was Fac Upp Upp Zhi Pro Res Qua Frg Res Tes Acc Hostile Shots Fired 1629 | . 8 22 6 20 . . 47 25 5 . 9 70 . 45 87 . . 22 73 4 2 10 6 42 . 26 . 8 . 20 10 14 573 . 78 397 Missed 704 | . 4 17 4 9 . . 29 11 3 . 3 42 . 33 36 . . 14 29 1 1 4 4 20 . 13 . 8 . 14 7 4 210 . 25 159 Intercepted 51 | . . . . . . . . . . . . . . . . . . . . . . . . . . . . . . . . . . . . 51 Deflected 17 | . . . . . . . . . . . . . . . . . . . . . . . . . . . . . . . . . 17 . . . Hits 925 | . 4 5 2 11 . . 18 14 2 . 6 28 . 12 51 . . 8 44 3 1 6 2 22 . 13 . . . 6 3 10 363 . 53 238 Melee 32 | . . . . . . . . . 1 . 1 . . 1 . . . . . . . 2 . . . . . . . . . . 27 . . . Projectile 893 | . 4 5 2 11 . . 18 14 1 . 5 28 . 11 51 . . 8 44 3 1 4 2 22 . 13 . . . 6 3 10 336 . 53 238 AOE 47 | . . . . . . . . . . . . . . . . . . . 3 . . . . . . . . . . . . . 8 . . 36 Critical Strikes 49 | . . . . . . . . 1 . . 1 . . 1 1 . . 1 1 . . 2 . 1 . 1 . . . . . . 30 . 5 4 Part Disruptions 8 | . . . . . . . . 1 2 . . . . . . . . . 1 . . . . . . . . . . . . . 1 . . 3 Damage Taken 22211 | . 53 45 22 170 . 90 203 275 148 . 127 409 . 345 489 28 . 305 928 78 21 181 36 423 . 320 . . . 141 76 286 10151 . 917 5944 Core 2379 | . 22 45 . 81 . 28 37 35 41 . . 55 . 54 61 . . 59 98 . . 17 . 82 . 92 . . . . . 57 776 . 61 678 Absorbed by Shields 1121 | . . . . . . . . . . . . . . . . . . . . . . 68 . . . . . . . . . . 738 . 288 27 Redirected to Shielding 813 | . . . . . . . . . . . . 28 . 123 38 . . . . . . . . . . . . . . . . 83 156 . 132 253 Regen/Repaired (Parts) 3253 | . . . . . . 28 . . . . . . . 81 . . . . 323 . . 252 . 227 . 241 . . . . . . 1502 . 163 436 Core Remaining (%) 81 | 100 . 73 100 85 . . . . . . 79 . . . . . . 73 . . . . 88 . . . . . . 84 . . 33 . 95 . Volleys Fired 738 | . . . 1 5 . 5 . 6 . 1 . 23 . 25 16 7 8 24 28 16 11 104 . 98 . 62 2 6 . 18 50 18 124 15 26 39 Largest 2 | . . . 1 1 . 2 . 1 . 1 . 1 . 1 1 1 1 1 1 1 1 1 . 1 . 1 1 1 . 1 1 1 1 1 1 2 Hottest 150 | . . . 33 36 . 69 . 36 . 5 . 36 . 105 35 105 35 45 105 60 60 60 . 60 . 60 60 60 . 60 60 60 110 113 60 150 Shots Fired 758 | . . . 1 5 . 10 . 5 . 1 . 23 . 26 16 7 8 24 29 16 11 104 . 100 . 62 3 6 . 18 50 19 127 15 26 46 Gun 32 | . . . . . . . . . . . . . . . . . . . . . . . . . . . . . . . . . . . 7 25 Cannon 633 | . . . . . . . . . . . . 15 . 24 16 7 8 23 21 16 11 104 . 99 . 61 3 6 . 16 50 19 91 15 16 12 Launcher 88 | . . . 1 5 . 10 . 5 . . . 4 . 2 . . . 1 8 . . . . 1 . 1 . . . 2 . . 36 . 3 9 Special 5 | . . . . . . . . . . 1 . 4 . . . . . . . . . . . . . . . . . . . . . . . . Kinetic 521 | . . . . . . . . . . . . . . . . . . . . 16 11 104 . 99 . 61 3 6 . 16 50 19 91 . 23 22 Thermal 129 | . . . . . . . . . . . . 15 . 24 16 7 8 23 21 . . . . . . . . . . . . . . 15 . . Explosive 88 | . . . 1 5 . 10 . 5 . . . 4 . 2 . . . 1 8 . . . . 1 . 1 . . . 2 . . 36 . 3 9 Electromagnetic 15 | . . . . . . . . . . . . . . . . . . . . . . . . . . . . . . . . . . . . 15 Robot Hit Streak 31 | . . . . . . 4 . . . 1 . 7 . 8 11 7 4 2 5 7 8 22 . 20 . 15 7 9 . 2 13 9 25 . 13 31 Robot Miss Streak 6 | . . . . 1 . 4 . 2 . . . 1 . 2 1 . 1 2 4 2 3 4 . 6 . 4 . 1 . 6 4 1 4 . 3 3 Penetration Max 2 | . . . . . . . . . . . . . . . . . . . . . . . . . . . . . . . . . 1 . . 2 Secondary Targets . | . . . . . . . . . . . . . . . . . . . . . . . . . . . . . . . . . . . . . Shots Hit Robots 946 | . . . 1 2 4 5 26 4 13 1 3 9 . 12 43 20 6 32 27 12 8 86 . 81 2 46 6 2 11 4 36 8 308 10 30 88 Core Hits 749 | . . . 4 5 1 6 9 10 6 . 1 8 . 23 18 4 4 16 73 10 7 69 . 68 1 41 5 2 4 10 25 4 242 5 18 50 Critical Kills 1 | . . . . . . . . . . . . . . . . . . . . . . . . . . . . . . . . . . . . 1 Critical Parts Destroyed 2 | . . . . . 2 . . . . . . . . . . . . . . . . . . . . . . . . . . . . . . . Critical Strikes 127 | . . . . . 2 . 1 . . . 1 . . . 4 2 . 2 3 . 1 24 . 3 . 2 . . . . 3 . 65 1 6 7 Destroy 1 | . . . . . . . . . . . . . . . . . . . . . . . . . . . . . . . . . . . . 1 Blast 44 | . . . . . . . . . . . . . . . . . . . . . 1 24 . 3 . 2 . . . . 1 . 12 . 1 . Corrupt 1 | . . . . . . . . . . . . . . . . . . . . . . . . . . . . . . . . . . . . 1 Smash 2 | . . . . . 2 . . . . . . . . . . . . . . . . . . . . . . . . . . . . . . . Sever 43 | . . . . . . . 1 . . . 1 . . . 4 2 . 2 3 . . . . . . . . . . . 2 . 18 1 5 4 Impale 36 | . . . . . . . . . . . . . . . . . . . . . . . . . . . . . . . . . 35 . . 1 Melee Attacks 934 | . . . 2 5 6 2 43 4 19 . 9 . . 46 39 14 . 45 43 . . . . 61 2 9 12 1 11 . 43 24 287 38 56 113 Impact 20 | . . . 2 4 6 1 7 . . . . . . . . . . . . . . . . . . . . . . . . . . . . . Slashing 775 | . . . . 1 . 1 36 4 19 . 9 . . 30 39 14 . 45 43 . . . . 57 2 9 12 1 11 . 43 24 177 38 56 104 Piercing 138 | . . . . . . . . . . . . . . 16 . . . . . . . . . 3 . . . . . . . . 110 . . 9 Sneak Attacks 100 | . . . . 1 4 . 10 4 3 . 1 . . 2 7 14 . 9 2 . . . . 7 . 2 . 1 . . 7 2 11 2 2 9 Combat Hostiles 5 | . . . . . . . . . . . . . . . 2 . . 2 . . . . . . . . . . . . . . 1 . . . Follow-up Attacks 47 | . . . . . . . 5 . . . . . . . . . . . . . . . . . . . . . . . . . 32 2 4 4 Martial Strikes 60 | . . . . . . . . . . . . . . . . . . . . . . . . . . . . . . . . . 42 1 9 8 Damage Inflicted 76396 | . . . 235 334 297 1046 1568 1030 1084 . 248 485 . 2276 1967 1030 192 2230 2898 535 505 5430 . 5030 180 3119 522 101 1107 286 2417 686 30250 627 2131 6550 Guns 911 | . . . . . . . . . . . . . . . . . . . . . . . . . . . . . . . . . . . 78 833 Cannons 21609 | . . . . . . . . . . . . 124 . . 347 156 192 . 40 535 505 5430 . 3725 . 2708 100 25 . 74 1438 242 5597 . 281 90 Explosions 18984 | . . . 210 246 . 1046 . 561 . . . 361 . 1764 . . . 193 1865 . . . . 282 . 189 . . . 212 . . 9420 . 599 2036 Melee 34892 | . . . 25 88 297 . 1568 469 1084 . 248 . . 512 1620 874 . 2037 993 . . . . 1023 180 222 422 76 1107 . 979 444 15233 627 1173 3591 Ramming . | . . . . . . . . . . . . . . . . . . . . . . . . . . . . . . . . . . . . . Kinetic 21307 | . . . . . . . . . . . . . . . . . . . . 535 505 5430 . 3725 . 2708 100 25 . 74 1438 242 5597 . 359 569 Thermal 2195 | . . . . . . . . . . . . 124 . 1269 347 156 192 . 40 . . . . 67 . . . . . . . . . . . . Explosive 17071 | . . . 210 246 . 1046 . 561 . . . 361 . 495 . . . 193 1759 . . . . 215 . 189 . . . 212 . . 9420 . 599 1565 Electromagnetic 931 | . . . . . . . . . . . . . . . . . . . 106 . . . . . . . . . . . . . . . . 825 Impact 656 | . . . 25 88 297 . 246 . . . . . . . . . . . . . . . . . . . . . . . . . . . . . Slashing 28486 | . . . . . . . 1322 469 1084 . 248 . . 322 1620 874 . 2037 993 . . . . 1023 180 222 422 76 1107 . 979 444 9927 627 1173 3337 Piercing 5750 | . . . . . . . . . . . . . . 190 . . . . . . . . . . . . . . . . . . 5306 . . 254 Highest Corruption 42 | . . . . . . 21 22 20 20 20 20 4 4 5 5 5 5 5 7 7 7 7 . 5 5 5 5 5 5 5 2 7 42 . . 12 Average Corruption 10 | . . . . . . 12 19 19 20 20 20 4 4 4 5 5 5 4 4 7 7 7 . 5 5 5 5 5 5 5 2 5 20 . . 5 Corruption Purged 6 | . . . . . . . 5 . . . . . . . . . . 1 . . . . . . . . . . . . . . . . . . Corruption Blocked . | . . . . . . . . . . . . . . . . . . . . . . . . . . . . . . . . . . . . . Effects 485 | . . . . . . 5 38 20 29 2 14 11 . 23 24 8 1 11 9 12 5 1 . 17 2 21 6 3 2 14 5 9 173 . . 20 Message Errors 118 | . . . . . . . 10 10 7 1 7 3 . 4 11 3 . 2 2 . 1 . . 1 1 9 1 . 2 4 1 3 28 . . 7 Matter Fused 126 | . . . . . . 3 7 1 6 . 2 2 . 8 6 . 1 6 2 3 3 1 . 9 . 2 3 3 . 4 1 2 45 . . 6 Heat Flow Errors 38 | . . . . . . 1 5 3 2 . . 1 . 2 . 1 . . . . . . . 2 1 3 . . . 1 . . 16 . . . Energy Discharges 49 | . . . . . . . 3 2 3 . 1 4 . 4 2 1 . . 1 4 . . . 3 . 2 1 . . 4 . 1 11 . . 2 Parts Rejected 8 | . . . . . . 1 1 . . . . . . . . 1 . . . . . . . . . 1 . . . . . . 4 . . . Parts Fused 3 | . . . . . . . 1 . . . . . . . . . . . . . . . . . . . . . . . 1 . 1 . . . Data Loss (minor) 53 | . . . . . . . 5 3 6 1 1 . . 3 3 1 . 3 1 1 1 . . . . 2 . . . 1 1 1 17 . . 2 Data Loss (major) 25 | . . . . . . . . . 2 . 2 1 . 1 1 1 . . . 2 . . . . . 1 . . . . 1 . 12 . . 1 Misfires 13 | . . . . . . . . . . . . . . 1 . . . . 1 . . . . 2 . . 1 . . . . 1 7 . . . Alerts 12 | . . . . . . . 3 . . . . . . . 1 . . . 2 2 . . . . . 1 . . . . . 1 1 . . 1 Misdirections 35 | . . . . . . . 3 . 3 . 1 . . . . . . . . . . . . . . . . . . . . . 27 . . 1 Weapon Failures 5 | . . . . . . . . 1 . . . . . . . . . . . . . . . . . . . . . . . . 4 . . . Overload Shots 3 | . . . . . . . . . . . . . . 1 . 1 . . 1 . . . . . . . . . . . . . . . . . Overflow Damage 6795 | . . . 17 . 167 . 199 258 386 . 99 1 . 305 139 5 . 122 139 19 12 97 . 224 19 140 195 . 342 . 210 250 2553 17 163 717 Projectiles 616 | . . . . . . . . . . . . 1 . . . 5 . . . 19 12 97 . 45 . 82 . . . . 32 3 310 . 10 . Explosions 659 | . . . 17 . . . . 16 . . . . . 140 . . . 13 16 . . . . 27 . 2 . . . . . . 132 . 28 268 Melee 5520 | . . . . . 167 . 199 242 386 . 99 . . 165 139 . . 109 123 . . . . 152 19 56 195 . 342 . 178 247 2111 17 125 449 Knockbacks 72 | . . . . . 1 . . . . . . . . . . . . . . 2 1 24 . 5 . 7 1 . . . 2 2 23 . 3 1 Impact 1 | . . . . . 1 . . . . . . . . . . . . . . . . . . . . . . . . . . . . . . . Kinetic 65 | . . . . . . . . . . . . . . . . . . . . 2 1 21 . 5 . 6 1 . . . 2 2 21 . 3 1 Secondary 6 | . . . . . . . . . . . . . . . . . . . . . . 3 . . . 1 . . . . . . 2 . . . Self-Inflicted Damage 734 | . . . . 26 . . . . . . . 31 . 28 . . . 113 31 . . . . . . . . . . . . . 241 . 236 28 Shots 19 | . . . . 1 . . . . . . . 1 . 1 . . . 2 2 . . . . . . . . . . . . . 8 . 3 1 Rammed . | . . . . . . . . . . . . . . . . . . . . . . . . . . . . . . . . . . . . . Targets Rammed . | . . . . . . . . . . . . . . . . . . . . . . . . . . . . . . . . . . . . . Kicked . | . . . . . . . . . . . . . . . . . . . . . . . . . . . . . . . . . . . . . Crushed . | . . . . . . . . . . . . . . . . . . . . . . . . . . . . . . . . . . . . . Highest Temperature 420 | . . . 2 . . 105 291 380 420 20 134 200 . 237 11 219 100 319 155 . . 37 . 154 244 219 . 40 . 149 14 18 403 202 285 320 Average Temperature 66 | . . . 2 . . 36 54 99 62 10 36 35 . 55 11 60 35 102 20 . . 14 . 25 123 46 . 19 . 100 9 11 90 54 89 106 Received Heat Transfer 2534 | . 30 . 12 18 . 9 24 . . . 27 51 . 33 204 . . 45 45 30 9 18 . 118 . . . . . . 9 39 1599 . 130 84 Effects 3 | . . . . . . . 1 . . . . . . . . . . 1 . . . . . . . . . . . . . . . . 1 . Energy Bleed 1 | . . . . . . . . . . . . . . . . . . . . . . . . . . . . . . . . . . . 1 . Interference 2 | . . . . . . . 1 . . . . . . . . . . 1 . . . . . . . . . . . . . . . . . . Siege Activations . | . . . . . . . . . . . . . . . . . . . . . . . . . . . . . . . . . . . . . Martial Activations . | . . . . . . . . . . . . . . . . . . . . . . . . . . . . . . . . . . . . . Shielding Activations . | . . . . . . . . . . . . . . . . . . . . . . . . . . . . . . . . . . . . . Robots Disrupted . | . . . . . . . . . . . . . . . . . . . . . . . . . . . . . . . . . . . . . Combat Hostiles . | . . . . . . . . . . . . . . . . . . . . . . . . . . . . . . . . . . . . . Robots Corrupted 5 | . . . . . 1 . 3 . . . . . . . . . . . . . . . . . . . . . . . . . . . . 1 Combat Hostiles 1 | . . . . . . . 1 . . . . . . . . . . . . . . . . . . . . . . . . . . . . . Parts Fried 8 | . . . . . 4 . . 1 . . . . . . . . . . . . . . . . . . . . . . . . 1 . . 2 Impact Corruptions 12 | . . . . . 7 . 4 . . . . . . . . . . . . . . . . . . . . . . . . . 1 . . . Robots Melted 1 | . . . . . . . . . . . . . . . 1 . . . . . . . . . . . . . . . . . . . . . Combat Hostiles 1 | . . . . . . . . . . . . . . . 1 . . . . . . . . . . . . . . . . . . . . . Parts Melted 9 | . . . . . . . . . . . . . . 2 4 . . . . . . 2 . . . . 1 . . . . . . . . . Heat Transferred 2325 | . . . . . . . . . . . . 200 . 925 550 250 300 . 50 . . . . 50 . . . . . . . . . . . . Parts Sabotaged 6 | . . . . . . . . . . . . . . . . . . . . . . . . . . . . . . . . . 6 . . . Parts Stolen . | . . . . . . . . . . . . . . . . . . . . . . . . . . . . . . . . . . . . . Parts Stripped . | . . . . . . . . . . . . . . . . . . . . . . . . . . . . . . . . . . . . . Power Chain Reactions . | . . . . . . . . . . . . . . . . . . . . . . . . . . . . . . . . . . . . . Alert | -11 -10 -10 -9 -8 -7 -7 -7 -7 -7 -7 -6 -6 -6 -6 -6 -6 -6 -6 -5 -5 -5 -5 -4 -4 -4 -4 -4 -4 -4 -3 -3 -3 -3 -2 -2 -1 ------- Run | Yrd Mat Min Mat Mat Fac Was Fac Low Low Dat Pro Fac Was Fac Ext Cet Arc Hub Fac Upp Upp War Pro Fac Was Fac Upp Upp Zhi Pro Res Qua Frg Res Tes Acc Maximum Alert Level 5 | . . . . 1 . . 1 . . . . 2 . 2 2 1 1 4 4 . . . . 3 1 2 . . . . 1 . 5 4 4 5 Low Security (%) 19 | 100 100 100 100 86 100 100 21 . . . . . 100 59 . . 40 2 . . . . . 37 . 13 . . . . 12 100 9 . . . Level 1 25 | . . . . 13 . . 78 . . . . 49 . . 79 100 59 . . . . . . 46 100 25 . . . . 87 . 2 . . . Level 2 14 | . . . . . . . . . . . . 50 . 40 20 . . 23 55 . . . . 15 . 60 . . . . . . 5 . 5 . Level 3 11 | . . . . . . . . . . . . . . . . . . 70 22 . . . . 1 . . . . . . . . 18 . 86 34 Level 4 18 | . . . . . . . . . . . . . . . . . . 2 21 . . . . . . . . . . . . . 30 100 7 9 Level 5 6 | . . . . . . . . . . . . . . . . . . . . . . . . . . . . . . . . . 33 . . 1 High Security 3 | . . . . . . . . . . . . . . . . . . . . . . . . . . . . . . . . . . . . 54 Max Security . | . . . . . . . . . . . . . . . . . . . . . . . . . . . . . . . . . . . . . Peak Influence 2774 | . 16 105 105 267 131 43 356 . . . . 476 143 598 527 365 222 1336 1238 . . . . 712 249 483 . . . . 279 181 2774 1536 1295 2296 Initial 1536 | . . 1 29 39 121 41 2 . . . . 306 143 86 284 268 123 70 654 . . . . . 249 153 . . . . 159 126 29 1536 677 773 Average 745 | . 4 37 41 119 119 23 232 . . . . 399 135 225 325 291 190 844 775 . . . . 285 234 357 . . . . 234 76 1416 1348 890 1558 Influence Increases 19472 | . 16 135 126 298 37 54 805 185 250 . 50 783 . 869 923 357 179 1828 1476 240 . 768 . 1294 . 687 35 5 15 110 656 277 3761 219 827 2207 Destroy 0b10 Robot/C 6980 | . . . 60 80 . . 180 140 60 . . 80 . . 500 160 80 360 400 100 . 640 . 400 . 280 20 . . 80 40 20 2340 20 160 780 Destroy 0b10 Robot/NC 745 | . . . 5 5 20 . 60 10 30 . 5 5 . 85 10 10 . 40 50 . . 15 . 85 . 35 15 5 15 5 70 15 75 15 10 50 Destroy Leader 900 | . . . 10 12 . . 48 20 10 . . 10 . 10 32 . . 92 66 20 . . . 92 . 74 . . . 10 42 2 224 16 10 100 Allied During Kill 1182 | . . . . . . . 69 . . . . . . . 305 163 80 397 . . . 98 . . . . . . . . . . . . . 70 Successful Hack 1070 | . 16 . . 4 . . 66 . . . . 41 . 57 . . . 93 151 . . . . 171 . 82 . . . . 162 102 . . 77 48 Select Force Hacks 50 | . . . . . . . . . . . . . . . . . . 50 . . . . . . . . . . . . . . . . . . Disable Machine 1875 | . . . . 60 . . 135 . . . . 30 . 435 . 15 15 195 255 . . . . 105 . 15 . . . . 30 75 405 . 75 30 Anti-Garrison Action 350 | . . . . . . . . . . . . . . . . . . 200 . . . . . . . . . . . . . . 150 . . . Destroy Structure 2005 | . . . 6 47 2 54 52 . . . . 32 . 162 16 9 4 161 344 . . . . 306 . 96 . . . . 102 48 42 108 135 279 Advance Influence 450 | . . . . . . . . . . . . 300 . . . . . . . . . . . . . . . . . . 150 . . . . . Partial Spotted 660 | . . . 30 15 15 . 105 . . . . 15 . 45 30 . . 15 45 . . . . 15 . 60 . . . . 60 15 135 30 . 30 Lose Combat Pursuer 2505 | . . 135 15 75 . . 90 15 150 . 45 270 . 75 30 . . 225 165 120 . 15 . 120 . 45 . . . 15 . . 390 30 60 420 Active Sensor Use 700 | . . . . . . . . . . . . . . . . . . . . . . . . . . . . . . . . . . . 300 400 Influence Decreases 17176 | . 10 66 106 126 186 169 648 268 232 95 40 382 288 411 1025 527 286 694 1578 638 290 794 520 582 493 458 317 112 69 100 446 449 1083 1745 742 1201 Entered New Map 7163 | . . 5 46 56 146 77 1 60 15 95 . 4 268 37 297 211 186 132 682 458 160 546 520 . 463 66 167 32 59 5 6 99 24 1195 528 517 Time Decay 6954 | . 10 61 60 60 40 60 367 198 217 . 10 238 20 353 398 206 40 222 386 170 130 208 . 456 30 362 150 80 10 95 440 190 709 550 214 214 Search Patrol Dispatched 200 | . . . . . . . 100 . . . . 100 . . . . . . . . . . . . . . . . . . . . . . . . Lost Part 910 | . . . . 10 . . 30 10 . . 30 40 . 10 20 10 . 20 60 10 . . . 20 . 20 . . . . . . 350 . . 270 Lost Ally 1103 | . . . . . . 32 150 . . . . . . 11 310 100 60 170 . . . 40 . 10 . 10 . . . . . 10 . . . 200 Purge Threat 846 | . . . . . . . . . . . . . . . . . . 150 450 . . . . 96 . . . . . . . 150 . . . . Squads Dispatched 160 | . 1 . 4 . . . 5 . . . 3 7 . 17 . . . 8 13 . . . . 13 . 12 . . . . 7 2 27 . 6 35 Investigation 47 | . . . 2 . . . 2 . . . . 5 . 8 . . . 2 5 . . . . 5 . 6 . . . . 2 . 1 . 3 6 Extermination 33 | . . . . . . . 2 . . . . 2 . 4 . . . 1 4 . . . . 4 . 3 . . . . 1 2 8 . . 2 Reinforcement 28 | . 1 . 2 . . . . . . . . . . 4 . . . 4 2 . . . . 3 . 1 . . . . 4 . 1 . 2 4 Assault 49 | . . . . . . . . . . . 3 . . 1 . . . 1 2 . . . . . . 2 . . . . . . 17 . 1 22 Garrison 3 | . . . . . . . 1 . . . . . . . . . . . . . . . . 1 . . . . . . . . . . . 1 Intercept . | . . . . . . . . . . . . . . . . . . . . . . . . . . . . . . . . . . . . . Searches Triggered 2 | . . . . . . . 1 . . . . 1 . . . . . . . . . . . . . . . . . . . . . . . . Unchained Authorized 3 | . . . . . . . . . . . . . . . . . . . . . . . . 1 . 1 . . . . . . . . . 1 Data Miner Redirects 16 | . . . . . . . . . . . . 2 . . . . . 1 4 . . . . 1 . . . . . . . . 8 . . . Construction Impeded 2 | . . . . . . . . . . . . . . . . . . 1 . . . . . 1 . . . . . . . . . . . . Haulers Reinforced 9 | . . . . . . . . . . . . . . 1 . . . 2 . . . . . 1 . . . . . . 4 . . . . 1 Active Scanning Responses 7 | . . . . . . . . . . . . . . . . . . . . . . . . . . . . . . . . . . . 3 4 Cargo Convoy Interrupts 1 | . . . . . . . . . . . . . . 1 . . . . . . . . . . . . . . . . . . . . . . Stealth | -11 -10 -10 -9 -8 -7 -7 -7 -7 -7 -7 -6 -6 -6 -6 -6 -6 -6 -6 -5 -5 -5 -5 -4 -4 -4 -4 -4 -4 -4 -3 -3 -3 -3 -2 -2 -1 --------- Run | Yrd Mat Min Mat Mat Fac Was Fac Low Low Dat Pro Fac Was Fac Ext Cet Arc Hub Fac Upp Upp War Pro Fac Was Fac Upp Upp Zhi Pro Res Qua Frg Res Tes Acc Distress Signals 59 | . . . . . . . 2 . . . . 1 . 2 2 2 . 9 1 . . . . 8 . 6 . . . . 11 . 1 8 4 2 Communications Jammed 3 | . . . . . . . . . . . . . . . . . . . . . . . . . . . . . . 1 . . 1 . . 1 Distress Signals 2 | . . . . . . . . . . . . . . . . . . . . . . . . . . . . . . . . . 1 . . 1 Times Spotted 839 | . 7 8 12 9 . 6 16 8 8 . 13 31 5 48 24 7 3 41 43 17 4 74 3 54 . 28 1 2 . 8 14 9 208 4 25 99 Peak Tracking Total 21 | . 6 3 5 9 . 6 5 4 5 . 10 11 5 21 4 5 2 11 11 5 4 14 3 11 . 9 1 2 . 4 3 4 13 3 9 16 Tactical Retreats 104 | . . 3 1 2 . . 5 1 7 . 1 9 . 8 1 . . 5 7 6 . 1 . 9 . 3 . 1 . 1 4 3 11 1 4 10 ECM-based Alert Blocks 61 | . . . . . . . . . . . . . . 26 . . . . 2 6 . . . 12 . 1 . 2 . . 5 7 . . . . Traps | -11 -10 -10 -9 -8 -7 -7 -7 -7 -7 -7 -6 -6 -6 -6 -6 -6 -6 -6 -5 -5 -5 -5 -4 -4 -4 -4 -4 -4 -4 -3 -3 -3 -3 -2 -2 -1 ------- Run | Yrd Mat Min Mat Mat Fac Was Fac Low Low Dat Pro Fac Was Fac Ext Cet Arc Hub Fac Upp Upp War Pro Fac Was Fac Upp Upp Zhi Pro Res Qua Frg Res Tes Acc Traps Triggered 46 | . . . . . 1 . . 1 2 . . 4 . 4 1 . . 1 1 . . . . 5 . 1 . . . . 4 . 20 . . 1 Indirectly 1 | . . . . . . . . . . . . . . . . . . . 1 . . . . . . . . . . . . . . . . . Trap Hack Attempts . | . . . . . . . . . . . . . . . . . . . . . . . . . . . . . . . . . . . . . Triggered . | . . . . . . . . . . . . . . . . . . . . . . . . . . . . . . . . . . . . . Disarmed . | . . . . . . . . . . . . . . . . . . . . . . . . . . . . . . . . . . . . . Reprogrammed . | . . . . . . . . . . . . . . . . . . . . . . . . . . . . . . . . . . . . . Reused 2 | . . . . . . . . . 2 . . . . . . . . . . . . . . . . . . . . . . . . . . . Traps Extracted 1 | . . . . . . . . . . . 1 . . . . . . . . . . . . . . . . . . . . . . . . . Installed 7 | . . . . . . . . . 2 . 5 . . . . . . . . . . . . . . . . . . . . . . . . . Triggered 2 | . . . . . . . . . 2 . . . . . . . . . . . . . . . . . . . . . . . . . . . Most Traps Carried 4 | . . . . . . . . 2 4 4 4 . . . . . . . . . . . . . . . . . . . . . . . . . Time Bombs Activated 1 | . . . . . . . . . . . . . . . . . . . . . . 1 . . . . . . . . . . . . . . Exploded 1 | . . . . . . . . . . . . . . . . . . . . . . 1 . . . . . . . . . . . . . . Machines | -11 -10 -10 -9 -8 -7 -7 -7 -7 -7 -7 -6 -6 -6 -6 -6 -6 -6 -6 -5 -5 -5 -5 -4 -4 -4 -4 -4 -4 -4 -3 -3 -3 -3 -2 -2 -1 ---------- Run | Yrd Mat Min Mat Mat Fac Was Fac Low Low Dat Pro Fac Was Fac Ext Cet Arc Hub Fac Upp Upp War Pro Fac Was Fac Upp Upp Zhi Pro Res Qua Frg Res Tes Acc Machines Disabled 133 | . . . . 4 . . 9 . . . . 2 . 29 . 1 1 13 17 . . 2 . 7 . 1 1 . . . 2 5 32 . 5 2 Max in Single Turn 22 | . . . . 1 . . 1 . . . . 2 . 22 . 1 . 10 9 . . 1 . 2 . 1 1 . . . 1 1 2 . 2 1 Garrison Access 9 | . . . . . . . 1 . . . . . . 2 . . . 1 . . . . . 1 . 1 . . . . . . 1 . 1 1 Network Hub 2 | . . . . . . . . . . . . . . . . . . 2 . . . . . . . . . . . . . . . . . . Machines Repaired . | . . . . . . . . . . . . . . . . . . . . . . . . . . . . . . . . . . . . . Machines Dismantled . | . . . . . . . . . . . . . . . . . . . . . . . . . . . . . . . . . . . . . Machines Sabotaged 1 | . . . . . . . . . . . . . . . . . . 1 . . . . . . . . . . . . . . . . . . Overloaded Fab Kills . | . . . . . . . . . . . . . . . . . . . . . . . . . . . . . . . . . . . . . Hacking | -11 -10 -10 -9 -8 -7 -7 -7 -7 -7 -7 -6 -6 -6 -6 -6 -6 -6 -6 -5 -5 -5 -5 -4 -4 -4 -4 -4 -4 -4 -3 -3 -3 -3 -2 -2 -1 --------- Run | Yrd Mat Min Mat Mat Fac Was Fac Low Low Dat Pro Fac Was Fac Ext Cet Arc Hub Fac Upp Upp War Pro Fac Was Fac Upp Upp Zhi Pro Res Qua Frg Res Tes Acc Machines Accessed 236 | . 3 . 4 4 . . 25 1 . 3 . 19 . 30 4 1 . 14 25 . . 2 . 26 . 16 . 2 4 1 24 10 6 2 6 4 Terminals 126 | . 3 . 4 2 . . 14 . . . . 10 . 11 4 1 . 13 12 . . . . 13 . 5 . 1 . 1 13 8 4 1 4 2 Fabricators 28 | . . . . . . . 4 . . . . 4 . 4 . . . . 4 . . . . 5 . 5 . . . . 2 . . . . . Repair Stations 9 | . . . . . . . . . . . . . . 2 . . . . 4 . . . . 1 . 2 . . . . . . . . . . Recycling Units 25 | . . . . 1 . . 2 . . . . 3 . 6 . . . . 3 . . . . 5 . 3 . . . . 2 . . . . . Scanalyzers 21 | . . . . 1 . . 3 . . . . 2 . 4 . . . . 2 . . . . 1 . . . . . . 4 1 1 . 1 1 Garrison Access 16 | . . . . . . . 2 . . . . . . 3 . . . 1 . . . . . 1 . 1 . . . . 3 1 1 1 1 1 Total Hacks 826 | . 10 . 10 14 . . 78 1 . 23 . 49 . 83 8 2 . 34 135 . . 7 . 115 . 53 . 2 17 1 92 35 17 2 26 12 Successful 437 | . 4 . 1 4 . . 41 1 . 23 . 34 . 58 6 . . 27 73 . . 7 . 57 . 33 . 2 17 1 19 13 3 . 10 3 Failed 386 | . 6 . 9 10 . . 37 . . . . 15 . 25 2 2 . 7 61 . . . . 58 . 20 . . . . 72 21 14 2 16 9 Catastrophic 97 | . 1 . 4 . . . 11 . . . . 2 . 5 1 . . 1 18 . . . . 8 . 5 . . . . 21 5 6 2 1 6 Database Lockouts 3 | . . . . . . . . . . . . . . . . . . . 1 . . . . . . . . . . . 1 1 . . . . Manual 325 | . 8 . 8 4 . . 26 . . . . 17 . 27 7 1 . 28 68 . . 1 . 49 . 25 . . . . 12 27 2 . 15 . Terminals 434 | . 10 . 10 8 . . 45 . . . . 20 . 31 8 2 . 31 72 . . . . 65 . 18 . 1 . 1 47 30 10 1 18 6 Fabricators 95 | . . . . . . . 7 . . . . 14 . 10 . . . . 20 . . . . 19 . 18 . . . . 7 . . . . . Repair Stations 31 | . . . . . . . . . . . . . . 2 . . . . 17 . . . . 6 . 6 . . . . . . . . . . Recycling Units 73 | . . . . 3 . . 5 . . . . 4 . 14 . . . . 12 . . . . 17 . 9 . . . . 9 . . . . . Scanalyzers 104 | . . . . 3 . . 17 . . . . 11 . 20 . . . . 14 . . . . 5 . . . . . . 21 2 5 . 4 2 Garrison Access 40 | . . . . . . . 4 . . . . . . 6 . . . 3 . . . . . 3 . 2 . . . . 8 3 2 1 4 4 Terminal Hacks 135 | . 1 . 1 1 . . 12 1 . 23 . 8 . 9 1 . . 6 15 . . 7 . 13 . 3 . 2 17 1 7 3 1 . 3 . Record 13 | . . . . . . . . . . 6 . . . . . . . . . . . . . . . . . 1 5 1 . . . . . . Part Schematic 27 | . . . . . . . 2 . . 8 . 2 . 1 . . . 2 6 . . . . 2 . . . . 4 . . . . . . . Robot Schematic 6 | . . . . . . . . . . 6 . . . . . . . . . . . . . . . . . . . . . . . . . . Robot Analysis 4 | . . . . . . . . . . . . . . . . . . . . . . . . . . . . . 4 . . . . . . . Prototype ID Bank 14 | . . . . . . . 1 . . 3 . . . . . . . . . . . 6 . . . . . . 4 . . . . . . . Open Door 4 | . . . . . . . . 1 . . . . . . . . . . . . . 1 . . . . . 1 . . . . . . 1 . Open DSF 1 | . . . . . . . . . . . . . . . . . . . . . . . . . . . . . . . 1 . . . . . Level Access Points 4 | . . . . . . . . . . . . . . . . . . . . . . . . 1 . . . . . . 1 1 . . 1 . Branch Access Points 7 | . 1 . 1 . . . 1 . . . . 1 . 1 . . . . 1 . . . . 1 . . . . . . . . . . . . Emergency Access Points 1 | . . . . . . . . . . . . . . . . . . . . . . . . . . . . . . . 1 . . . . . Terminal Index 7 | . . . . . . . 1 . . . . 1 . 1 1 . . 1 . . . . . . . 1 . . . . . 1 . . . . Fabricator Index 2 | . . . . . . . 1 . . . . . . 1 . . . . . . . . . . . . . . . . . . . . . . Scanalyzer Index 3 | . . . . . . . . . . . . 1 . . . . . . . . . . . 1 . 1 . . . . . . . . . . Garrison Index 1 | . . . . . . . 1 . . . . . . . . . . . . . . . . . . . . . . . . . . . . . Alert Level 3 | . . . . . . . . . . . . . . . . . . . . . . . . 1 . . . . . . 1 . . . 1 . Unreport Threat 6 | . . . . . . . . . . . . . . . . . . 1 3 . . . . 1 . . . . . . . 1 . . . . Locate Traps 3 | . . . . . . . . . . . . . . . . . . . 2 . . . . 1 . . . . . . . . . . . . Extermination Status 1 | . . . . . . . 1 . . . . . . . . . . . . . . . . . . . . . . . . . . . . . Recall Investigation 1 | . . . . . . . . . . . . 1 . . . . . . . . . . . . . . . . . . . . . . . . Recall Extermination 6 | . . . . . . . 2 . . . . . . 2 . . . . 1 . . . . 1 . . . . . . . . . . . . Recall Reinforcements 2 | . . . . . . . . . . . . . . 2 . . . . . . . . . . . . . . . . . . . . . . Hauler Manifests 9 | . . . . . . . 2 . . . . 1 . 1 . . . 1 2 . . . . 1 . . . . . . 1 . . . . . Registered Components 5 | . . . . . . . . . . . . 1 . . . . . 1 . . . . . 1 . 1 . . . . 1 . . . . . Zone Layout 4 | . . . . 1 . . . . . . . . . . . . . . . . . . . 2 . . . . . . 1 . . . . . Proto ID Catalog 1 | . . . . . . . . . . . . . . . . . . . . . . . . . . . . . . . . . 1 . . . Fabricator Hacks 49 | . . . . . . . 3 . . . . 7 . 7 . . . . 11 . . . . 11 . 9 . . . . 1 . . . . . Network Status 6 | . . . . . . . 2 . . . . 1 . 1 . . . . 1 . . . . 1 . . . . . . . . . . . . Load Schematic 28 | . . . . . . . 1 . . . . 4 . 3 . . . . 7 . . . . 6 . 6 . . . . 1 . . . . . Build 15 | . . . . . . . . . . . . 2 . 3 . . . . 3 . . . . 4 . 3 . . . . . . . . . . Repair Station Hacks 15 | . . . . . . . . . . . . . . . . . . . 8 . . . . 3 . 4 . . . . . . . . . . Scan Component 8 | . . . . . . . . . . . . . . . . . . . 4 . . . . 2 . 2 . . . . . . . . . . Repair 7 | . . . . . . . . . . . . . . . . . . . 4 . . . . 1 . 2 . . . . . . . . . . Recycling Unit Hacks 23 | . . . . . . . 1 . . . . 2 . 7 . . . . 3 . . . . 5 . 3 . . . . 2 . . . . . Retrieve Components 23 | . . . . . . . 1 . . . . 2 . 7 . . . . 3 . . . . 5 . 3 . . . . 2 . . . . . Scanalyzer 73 | . . . . 1 . . 14 . . . . 10 . 16 . . . . 14 . . . . 1 . . . . . . 9 1 2 . 3 2 Insert Component 29 | . . . . . . . 5 . . . . 4 . 7 . . . . 5 . . . . 1 . . . . . . 4 . 2 . 1 . Analyze 24 | . . . . . . . 5 . . . . 2 . 7 . . . . 8 . . . . . . . . . . . 2 . . . . . Retrieve Study 20 | . . . . 1 . . 4 . . . . 4 . 2 . . . . 1 . . . . . . . . . . . 3 1 . . 2 2 Garrison Access Hacks 7 | . . . . . . . 1 . . . . . . 2 . . . . . . . . . 1 . 1 . . . . . . . . 1 1 Seal Access 7 | . . . . . . . 1 . . . . . . 2 . . . . . . . . . 1 . 1 . . . . . . . . 1 1 Unauthorized Hacks 135 | . 3 . . 2 . . 10 . . . . 7 . 17 5 . . 21 22 . . . . 23 . 13 . . . . . 9 . . 3 . Terminals 93 | . 3 . . 2 . . 8 . . . . 3 . 9 5 . . 20 11 . . . . 14 . 6 . . . . . 9 . . 3 . Track 29 | . . . . . . . 2 . . . . 1 . 2 1 . . 6 4 . . . . 7 . 2 . . . . . 3 . . 1 . Assimilate 16 | . . . . 1 . . 1 . . . . . . 3 1 . . 1 . . . . . 3 . 3 . . . . . 2 . . 1 . Botnet 30 | . 3 . . 1 . . 3 . . . . 2 . 3 1 . . 3 6 . . . . 3 . 1 . . . . . 3 . . 1 . Disrupt 1 | . . . . . . . . . . . . . . . 1 . . . . . . . . . . . . . . . . . . . . . Operators 8 | . . . . . . . 1 . . . . . . 1 1 . . 2 1 . . . . 1 . . . . . . . 1 . . . . Skim 8 | . . . . . . . 1 . . . . . . . . . . 7 . . . . . . . . . . . . . . . . . . Sabotage 1 | . . . . . . . . . . . . . . . . . . 1 . . . . . . . . . . . . . . . . . . Fabricators 15 | . . . . . . . 1 . . . . 3 . 1 . . . . 5 . . . . 3 . 2 . . . . . . . . . . Prioritize 2 | . . . . . . . . . . . . 1 . . . . . . 1 . . . . . . . . . . . . . . . . . Haulers 4 | . . . . . . . 1 . . . . . . 1 . . . . 1 . . . . 1 . . . . . . . . . . . . Recompile 9 | . . . . . . . . . . . . 2 . . . . . . 3 . . . . 2 . 2 . . . . . . . . . . Repair Stations 4 | . . . . . . . . . . . . . . 2 . . . . 1 . . . . . . 1 . . . . . . . . . . Patch 4 | . . . . . . . . . . . . . . 2 . . . . 1 . . . . . . 1 . . . . . . . . . . Recycling Units 22 | . . . . . . . 1 . . . . 1 . 5 . . . . 5 . . . . 6 . 4 . . . . . . . . . . Monitor 3 | . . . . . . . . . . . . . . 1 . . . . . . . . . 1 . 1 . . . . . . . . . . Reject 4 | . . . . . . . . . . . . . . 1 . . . . 2 . . . . 1 . . . . . . . . . . . . Recyclers 7 | . . . . . . . 1 . . . . 1 . 1 . . . . 1 . . . . 2 . 1 . . . . . . . . . . Mask 8 | . . . . . . . . . . . . . . 2 . . . . 2 . . . . 2 . 2 . . . . . . . . . . Scanalyzers . | . . . . . . . . . . . . . . . . . . . . . . . . . . . . . . . . . . . . . Garrison Access 1 | . . . . . . . . . . . . . . . . . . 1 . . . . . . . . . . . . . . . . . . Jam 1 | . . . . . . . . . . . . . . . . . . 1 . . . . . . . . . . . . . . . . . . Data Cores Recovered 5 | . . . . . . . . . . . . . . 1 . . . 1 . . . . . . . . . . . . . 2 . . 1 . Used 2 | . . . . . . . . . . . . . . 1 . . . . . . . . . . . . . . . . . 1 . . . . Hacking Detections 187 | . 3 . 4 4 . . 22 . . . . 17 . 21 4 2 . 13 21 . . . . 21 . 9 . . . . 21 10 5 2 5 3 Full Trace Events 23 | . 1 . 1 . . . 2 . . . . 3 . 5 . . . . 1 . . . . 3 . 3 . . . . 1 . 1 . . 2 Feedback Events 6 | . . . . . . . 1 . . . . 1 . 1 . . . . . . . . . . . 1 . . . . . . 1 . . 1 Corruption 4 | . . . . . . . 1 . . . . . . 1 . . . . . . . . . . . . . . . . . . 1 . . 1 Hackware Fried 2 | . . . . . . . . . . . . 1 . . . . . . . . . . . . . 1 . . . . . . . . . . Feedback Blocked . | . . . . . . . . . . . . . . . . . . . . . . . . . . . . . . . . . . . . . Robot Schematics Acquired 10 | . . . . . . . . . . 6 . . . . . . . . . . . . . . . . . . . . . . 3 . 1 . Robots Built . | . . . . . . . . . . . . . . . . . . . . . . . . . . . . . . . . . . . . . Authchips . | . . . . . . . . . . . . . . . . . . . . . . . . . . . . . . . . . . . . . Time . | . . . . . . . . . . . . . . . . . . . . . . . . . . . . . . . . . . . . . Total Robot Build Rating . | . . . . . . . . . . . . . . . . . . . . . . . . . . . . . . . . . . . . . Part Schematics Acquired 59 | . . . . . . . 7 . . 8 . 3 . 7 . . . 2 11 . . . . 2 . . . . 4 . 2 . 10 . 3 . Parts Built 22 | . . . . . . . . . . . . 3 . 4 . . . . 4 . . . . 6 . 5 . . . . . . . . . . Authchips 9 | . . . . . . . . . . . . 1 . 1 . . . . 3 . . . . 1 . 3 . . . . . . . . . . Time 992 | . . . . . . . . . . . . 199 . 274 . . . . 127 . . . . 268 . 124 . . . . . . . . . . Total Part Build Rating 123 | . . . . . . . . . . . . 15 . 27 . . . . 21 . . . . 33 . 27 . . . . . . . . . . Part Studies Acquired 20 | . . . . 1 . . 4 . . . . 4 . 2 . . . . 1 . . . . . . . . . . . 3 1 . . 2 2 Parts Repaired 7 | . . . . . . . . . . . . . . . . . . . 4 . . . . 1 . 2 . . . . . . . . . . Time 369 | . . . . . . . . . . . . . . . . . . . 238 . . . . 56 . 75 . . . . . . . . . . Parts Recycled . | . . . . . . . . . . . . . . . . . . . . . . . . . . . . . . . . . . . . . Recycled Matter . | . . . . . . . . . . . . . . . . . . . . . . . . . . . . . . . . . . . . . Retrieved Matter . | . . . . . . . . . . . . . . . . . . . . . . . . . . . . . . . . . . . . . Retrieved Components 53 | . . . . . . . 7 . . . . 6 . 9 . . . . 6 . . . . 10 . 5 . . . . 10 . . . . . Parts Scanalyzed 23 | . . . . . . . 5 . . . . 2 . 7 . . . . 5 . . . . 1 . . . . . . 3 . . . . . Part Schematics Acquired 19 | . . . . . . . 5 . . . . 1 . 6 . . . . 5 . . . . . . . . . . . 2 . . . . . Parts Damaged 3 | . . . . . . . 1 . . . . 1 . . . . . . . . . . . 1 . . . . . . . . . . . . Bothacking | -11 -10 -10 -9 -8 -7 -7 -7 -7 -7 -7 -6 -6 -6 -6 -6 -6 -6 -6 -5 -5 -5 -5 -4 -4 -4 -4 -4 -4 -4 -3 -3 -3 -3 -2 -2 -1 ------------ Run | Yrd Mat Min Mat Mat Fac Was Fac Low Low Dat Pro Fac Was Fac Ext Cet Arc Hub Fac Upp Upp War Pro Fac Was Fac Upp Upp Zhi Pro Res Qua Frg Res Tes Acc Used RIF Installer . | . . . . . . . . . . . . . . . . . . . . . . . . . . . . . . . . . . . . . Robots Hacked 5 | . . . . . . . . . . 1 . 3 . . . . . . . . . . . 1 . . . . . . . . . . . . Non-combat 4 | . . . . . . . . . . . . 3 . . . . . . . . . . . 1 . . . . . . . . . . . . Combat 1 | . . . . . . . . . . 1 . . . . . . . . . . . . . . . . . . . . . . . . . . Robot Hacks Applied 5 | . . . . . . . . . . 1 . 3 . . . . . . . . . . . 1 . . . . . . . . . . . . parse_system 2 | . . . . . . . . . . 1 . 1 . . . . . . . . . . . . . . . . . . . . . . . . find_chute 3 | . . . . . . . . . . . . 2 . . . . . . . . . . . 1 . . . . . . . . . . . . Relay Couplers Released 1 | . . . . . . . . . . . . . . . . . . . . . . . . . . . . . . . . . 1 . . . Machine Destruction 1 | . . . . . . . . . . . . . . . . . . . . . . . . . . . . . . . . . 1 . . . Fabnet Peak Effective % . | . . . . . . . . . . . . . . . . . . . . . . . . . . . . . . . . . . . . . Robots Rewired 25 | . . . . . . . . . . . . . . . 20 . . . . . . 5 . . . . . . . . . . . . . . Allies Hacked . | . . . . . . . . . . . . . . . . . . . . . . . . . . . . . . . . . . . . . Hacks Repelled . | . . . . . . . . . . . . . . . . . . . . . . . . . . . . . . . . . . . . . Allies | -11 -10 -10 -9 -8 -7 -7 -7 -7 -7 -7 -6 -6 -6 -6 -6 -6 -6 -6 -5 -5 -5 -5 -4 -4 -4 -4 -4 -4 -4 -3 -3 -3 -3 -2 -2 -1 -------- Run | Yrd Mat Min Mat Mat Fac Was Fac Low Low Dat Pro Fac Was Fac Ext Cet Arc Hub Fac Upp Upp War Pro Fac Was Fac Upp Upp Zhi Pro Res Qua Frg Res Tes Acc Total Allies 66 | . . . . 1 . 19 . . . . . . . 2 29 5 . 1 . . . 5 . 1 . 2 . . . . . 1 . . . . Largest Group 19 | . . . . 1 . 19 12 . . . . . . 1 13 14 12 10 . . . 5 . 1 . 2 . . . . . 1 . . . . Highest-Rated Group 874 | . . . . 10 . 454 348 . . . . . . 26 524 874 696 620 . . . 265 . 10 . 36 . . . . . 45 . . . . Highest-Rated Ally 159 | . . . . 10 . 35 35 . . . . . . 26 159 159 96 96 . . . 68 . 10 . 26 . . . . . 45 . . . . Total Orders 4 | . . . . . . . . . . . . . . . . . . 1 . . . 1 . 2 . . . . . . . . . . . . STAY 3 | . . . . . . . . . . . . . . . . . . 1 . . . 1 . 1 . . . . . . . . . . . . FOLLOW 1 | . . . . . . . . . . . . . . . . . . . . . . . . 1 . . . . . . . . . . . . Ally Attacks 517 | . . . . . . 80 37 . . . . . . . 122 57 30 85 . . . 37 . . . . . . . . . . . . . 69 Total Damage 17178 | . . . . . . 3573 1642 . . . . . . . 2404 1339 537 2118 . . . 1356 . . . . . . . . . . . . . 4209 Kills 88 | . . . . . . 8 12 . . . . . . . 13 10 2 14 . . . 13 . . . . . . . . . . . . . 16 Allies Corrupted 7 | . . . . 1 . . 1 . . . . . . . . . . 2 . . . 1 . . . . . . . . . . . . . 2 Allies Melted . | . . . . . . . . . . . . . . . . . . . . . . . . . . . . . . . . . . . . . Intel | -11 -10 -10 -9 -8 -7 -7 -7 -7 -7 -7 -6 -6 -6 -6 -6 -6 -6 -6 -5 -5 -5 -5 -4 -4 -4 -4 -4 -4 -4 -3 -3 -3 -3 -2 -2 -1 ------- Run | Yrd Mat Min Mat Mat Fac Was Fac Low Low Dat Pro Fac Was Fac Ext Cet Arc Hub Fac Upp Upp War Pro Fac Was Fac Upp Upp Zhi Pro Res Qua Frg Res Tes Acc Active Infowar (turns) 18965 | . . 1 . 96 89 125 315 363 584 37 319 491 47 972 944 431 98 471 918 344 274 844 95 1314 76 831 310 164 98 518 1081 387 3287 1583 445 1013 Optics 16512 | . . . . . . . . . . . . . 14 972 944 431 98 471 918 344 274 844 95 1314 76 831 310 164 98 518 1081 387 3287 1583 445 1013 Sensors 9792 | . . 1 . . 51 125 165 363 584 37 319 491 47 747 . . . 109 231 213 274 299 95 1163 . 646 299 164 96 507 960 368 1438 . . . A.S.S. 3017 | . . . . . . . . . . . . . . . . . . . . . . . . . . . . . . . . . 5 1554 445 1013 Terrain 2 | . . . . . . . . . . . . . . . . . . . 1 . . . . . . . . . . . . . . . . 1 Seismic 477 | . . . . . . . . . . . . . . . . . . . 421 56 . . . . . . . . . . . . . . . . T.N.C. 552 | . . . . 96 89 125 242 . . . . . . . . . . . . . . . . . . . . . . . . . . . . . Machine Analysis 395 | . . . . . . . . . . . . . . . . . . . 395 . . . . . . . . . . . . . . . . . Cloaking 2575 | . . . . . . . . . . . . . . . . . . . . . . . . 2 . . . . . . . . 115 1394 330 734 Jamming 910 | . . . . . . . . . . . . . . . . . . . . . . . . . . 2 . . . 503 41 16 263 . . 85 ECM 1824 | . . . . . . . . . . . . . . 146 1 . . . 229 81 . . . 413 . 54 . 70 . . 500 328 . 2 . . Robot Analysis Total 4 | . . . . . . . . . . . . . . . . . . . . . . . . . . . . . 4 . . . . . . . Derelict Logs Recovered 14 | . . 2 . . . . . 2 2 . 1 . . . . . . . . . 2 . 2 . . . 2 1 . . . . . . . . Drone Launches 12 | . . . . . . . . . . . . . . . . . . . . . . . . . . . . . . . . . . . . 12 Drone Recoveries . | . . . . . . . . . . . . . . . . . . . . . . . . . . . . . . . . . . . . . Exploration | -11 -10 -10 -9 -8 -7 -7 -7 -7 -7 -7 -6 -6 -6 -6 -6 -6 -6 -6 -5 -5 -5 -5 -4 -4 -4 -4 -4 -4 -4 -3 -3 -3 -3 -2 -2 -1 ------------- Run | Yrd Mat Min Mat Mat Fac Was Fac Low Low Dat Pro Fac Was Fac Ext Cet Arc Hub Fac Upp Upp War Pro Fac Was Fac Upp Upp Zhi Pro Res Qua Frg Res Tes Acc Turns Passed 20064 | 67 45 211 122 138 89 125 847 402 584 37 336 516 47 972 944 431 98 471 918 344 274 844 95 1314 76 831 310 164 98 518 1081 387 3287 1583 445 1013 Spaces Moved 39921 | 45 75 537 278 293 211 214 2006 758 1094 113 699 1589 133 2709 1098 215 68 960 1925 760 848 1314 300 2596 291 1574 984 578 198 850 3451 1040 4932 2836 657 1692 Core 238 | 42 22 . . . . . . . . . . . . . . . . 5 5 1 . 128 . 32 . . . . . . . . 3 . . . Treads 3 | 3 . . . . . . . . . . . . . . . . . . . . . . . . . . . . . . . . . . . . Legs . | . . . . . . . . . . . . . . . . . . . . . . . . . . . . . . . . . . . . . Wheels . | . . . . . . . . . . . . . . . . . . . . . . . . . . . . . . . . . . . . . Hover 7926 | . . . . . . . . . . . . . . . . . . . . . . . . . . . . . . . . . 2741 2836 657 1692 Flight 31754 | . 53 537 278 293 211 214 2006 758 1094 113 699 1589 133 2709 1098 215 68 955 1920 759 848 1186 300 2564 291 1574 984 578 198 850 3451 1040 2188 . . . Fastest Speed 5 | 50 37 37 34 31 31 31 27 28 28 28 28 6 20 7 18 18 21 20 7 24 28 24 24 14 20 17 23 17 23 17 15 16 5 28 33 18 Average Speed 26 | 122 41 37 34 31 31 31 27 28 28 28 28 20 20 20 18 59 21 23 24 28 28 33 24 23 22 25 23 22 23 22 21 22 30 32 33 30 Slowest Speed 1050 | 200 117 37 34 34 31 31 31 28 28 28 31 68 20 22 70 76 21 230 100 100 28 100 24 100 92 94 94 23 94 23 23 23 1050 90 33 89 Overloaded Moves 278 | . . . . . . . . . . . . 12 . 14 . . . . 25 4 . . . 18 . 5 . 5 . 10 19 29 42 . . 95 Propulsion Burnouts 1 | . . . . . . . . . . . . . . . . . . . . . . . . . . . . . . . . . . . . 1 Robots Hopped 199 | . . 3 8 6 . . 20 1 . . 1 22 3 29 15 . . 22 11 . 2 2 2 24 1 5 5 . . . 13 . 4 . . . Potential Cave-ins 16 | . . . . . . . . . . . . . . . . . . 2 . . . 2 . 4 . . . . . . . . . . 2 6 Cave-ins Triggered . | . . . . . . . . . . . . . . . . . . . . . . . . . . . . . . . . . . . . . Teleports 28 | . . . . . . . . . . . . . . . . . . . . . . . . . . . . . . . . . 27 . . 1 Exploration Rate (%) 67 | 3 20 94 34 47 5 79 63 81 83 71 79 49 85 69 89 84 84 82 58 82 94 92 48 45 94 27 88 71 61 84 92 89 65 75 77 45 Regions Visited 36 Branch Regions 20 Pre-discovered Areas 7 | . . . . . . . . . . 1 . . . . . . . . . . . . 1 . . . 1 1 3 . . . . . . . Known Exits Taken 23 | . 1 . 1 1 . . 1 1 1 1 1 . . 1 1 . . 1 1 . . . 1 . . 1 1 1 1 1 1 1 1 1 1 . Unknown Exits Taken 7 | 1 . 1 . . . . . . . . . . . . . 1 1 . . 1 1 1 . . . . . . . . . . . . . . Scrap Searched 22 | . . 2 . . . . . 4 2 . 2 . . . . . . . . 2 3 . 1 . . . 4 1 . 1 . . . . . . Spaces Dug 431 | . . . 6 9 2 1 5 . 6 . 4 9 . 42 3 . . 20 29 5 5 9 . 67 . 24 7 6 . 14 42 20 14 32 20 30 Terrain Destroyed 1468 | . . . 6 44 2 20 5 46 6 . 4 40 . 163 8 1 1 228 181 17 8 47 . 191 . 53 11 12 . 67 60 26 27 39 45 110 Melee 257 | . . . 1 . 2 1 5 . 6 . 4 . . 31 3 . . 14 23 . . . . 39 . 7 7 . . . 28 15 9 24 17 21 Projectile 392 | . . . . . . . . . . . . 11 . 22 5 1 1 21 18 17 8 47 . 76 . 31 4 12 . 29 32 11 18 15 9 4 AOE 819 | . . . 5 44 . 19 . 46 . . . 29 . 110 . . . 193 140 . . . . 76 . 15 . . . 38 . . . . 19 85 Terrain Rammed . | . . . . . . . . . . . . . . . . . . . . . . . . . . . . . . . . . . . . . Walls Destroyed . | . . . . . . . . . . . . . . . . . . . . . . . . . . . . . . . . . . . . . Machines Disabled . | . . . . . . . . . . . . . . . . . . . . . . . . . . . . . . . . . . . . . Actions | -11 -10 -10 -9 -8 -7 -7 -7 -7 -7 -7 -6 -6 -6 -6 -6 -6 -6 -6 -5 -5 -5 -5 -4 -4 -4 -4 -4 -4 -4 -3 -3 -3 -3 -2 -2 -1 --------- Run | Yrd Mat Min Mat Mat Fac Was Fac Low Low Dat Pro Fac Was Fac Ext Cet Arc Hub Fac Upp Upp War Pro Fac Was Fac Upp Upp Zhi Pro Res Qua Frg Res Tes Acc Total 47196 | 54 88 546 291 313 225 255 2220 932 1331 117 816 1733 149 2994 1740 486 142 1081 2240 871 870 1650 319 3074 297 1919 1037 601 230 1151 3655 1141 6374 3420 798 2036 Wait 4317 | . . 7 8 2 . 28 128 142 210 . 97 52 9 186 441 239 67 62 197 92 10 154 21 257 . 211 24 11 . 274 43 33 707 455 36 114 Move 39508 | 44 74 530 263 281 211 213 1966 755 1093 112 696 1545 128 2652 1068 214 67 916 1902 759 843 1309 295 2552 288 1564 975 577 197 849 3425 1039 4923 2835 656 1692 Hop 181 | . . 3 6 5 . . 19 1 . . 1 22 1 27 14 . . 21 11 . 2 2 2 20 1 4 3 . . . 12 . 4 . . . Pick Up 222 | 1 6 1 1 2 3 . 16 2 1 . 1 8 2 9 . 2 . . 10 . 1 4 . 7 3 10 1 . 2 2 10 4 82 13 4 14 Fast Attach 179 | 6 2 1 2 4 . 1 5 4 . 1 . 12 1 1 2 2 . 5 14 . . 6 . 9 . 7 2 . 5 . 9 3 51 10 5 9 Attach 140 | . 2 . 2 2 2 . 5 4 . 1 . 8 1 3 1 . . 1 6 . . 1 . 2 1 9 5 2 2 2 2 . 45 6 . 25 Detach 93 | 3 1 1 2 . . . 3 4 . 1 . 7 1 1 1 1 . 1 3 . . 3 . 3 2 5 5 2 2 1 2 . 29 4 . 5 Swap 470 | . . 1 3 7 1 7 16 5 5 . 6 11 4 30 7 5 . 6 20 4 2 9 1 43 . 27 7 2 6 4 30 11 107 33 21 29 Drop 232 | . 3 2 1 . 2 . 25 5 1 1 1 12 2 9 . 2 . . 6 . 1 6 . 9 . 11 1 . 5 1 17 9 68 17 10 5 Fire 738 | . . . 1 5 . 5 . 6 . 1 . 23 . 25 16 7 8 24 28 16 11 104 . 98 . 62 2 6 . 18 50 18 124 15 26 39 Melee 795 | . . . 2 5 6 1 37 4 19 . 9 . . 46 39 14 . 45 43 . . . . 61 2 9 12 1 11 . 43 24 197 32 37 96 Ram . | . . . . . . . . . . . . . . . . . . . . . . . . . . . . . . . . . . . . . Kick . | . . . . . . . . . . . . . . . . . . . . . . . . . . . . . . . . . . . . . Crush . | . . . . . . . . . . . . . . . . . . . . . . . . . . . . . . . . . . . . . Escape Stasis 126 | . . . . . . . . . . . . 33 . 5 15 . . . . . . . . 13 . . . . . . 12 . 37 . 3 8 Rewire 187 | . . . . . . . . . . . . . . . 136 . . . . . . 51 . . . . . . . . . . . . . . Trap 8 | . . . . . . . . . 2 . 5 . . . . . . . . . . 1 . . . . . . . . . . . . . . Miscellaneous . | . . . . . . . . . . . . . . . . . . . . . . . . . . . . . . . . . . . . . Route ------- -11/Scrapyard -10/Materials (discovered 2 exits: *Min x2) -10/Mines -9/Materials (discovered 3 exits: *Mat / *Min x2) -8/Materials (discovered 2 exits: *Fac / Sto) -7/Factory -7/Waste -7/Factory (discovered 4 exits: *Fac x2 / *Low x2) -7/Lower Caves -7/Lower Caves (discovered 2 exits: *Fac / *Dat) -7/Data Miner -6/Proximity Caves -6/Factory (discovered 5 exits: *Fac / Low x2 / *Ext x2) -6/Waste -6/Factory (discovered 6 exits: *Fac x2 / *Low x2 / *Ext x2) -6/Extension (discovered 2 exits: *Fac / *Cet) -6/Cetus (discovered 2 exits: *Fac / [*Arc]) -6/Archives (discovered 2 exits: *Fac / *Hub) -6/Hub_04(d) (discovered 3 exits: *Fac x3) -5/Factory (discovered 5 exits: *Fac x3 / *Upp x2) -5/Upper Caves -5/Upper Caves (discovered 2 exits: *Fac / *War) -5/Warlord -4/Proximity Caves -4/Factory (discovered 6 exits: *Res x4 / *Upp x2) -4/Waste -4/Factory (discovered 2 exits: *Res / *Upp) -4/Upper Caves -4/Upper Caves -4/Zhirov -3/Proximity Caves -3/Research (discovered 5 exits: *Res x3 / *Arm / *Qua) -3/Quarantine (discovered 3 exits: *Res / [*Sec] / *Frg) -3/Protoforge -2/Research (discovered 3 exits: *Acc / *Tes x2) -2/Testing -1/Access History --------- Turn | Location | Event 6 | -11/Scrapyard | Discovered new exit (range 15) 68 | -11/Scrapyard | Entered Materials 98 | -10/Materials | Identified exit to Mines 113 | -10/Materials | Entered Mines 119 | -10/Mines | Met a Derelict bent on vengeance 209 | -10/Mines | Learned 2 Materials zone layouts 212 | -10/Mines | Found a damaged Exp. Sensor Array with a note attached 213 | -10/Mines | Found Prototype Device 213 | -10/Mines | Identified Exp. Sensor Array 291 | -10/Mines | Received a Rocket Launcher from a helpful Derelict 316 | -10/Mines | Build established: Mutant 321 | -10/Mines | Discovered new exit (range 9) 324 | -10/Mines | Entered Materials 324 | -9/Materials | Evolved 2 slots: Propulsion x1, Utility x1 325 | -9/Materials | Identified exit to Materials 325 | -9/Materials | Identified exit to Mines 446 | -9/Materials | Entered another Materials area 446 | -8/Materials | Evolved 2 slots: Propulsion x1, Utility x1 447 | -8/Materials | Identified exit to Storage 575 | -8/Materials | Discovered new exit (range 16) 582 | -8/Materials | Identified exit to Factory 584 | -8/Materials | Entered Factory 584 | -7/Factory | Evolved 2 slots: Propulsion x1, Utility x1 673 | -7/Factory | Sucked down chute 673 | -7/Factory | Entered Waste 674 | -7/Waste | Met a frightened Derelict 676 | -7/Waste | Spotted C-40 Crusher 676 | -7/Waste | Spotted C-40 Crusher 687 | -7/Waste | Spotted C-40 Crusher 688 | -7/Waste | EMP discharged 688 | -7/Waste | System corruption reached 10% 692 | -7/Waste | Met Warlord forces unprepared to attack 704 | -7/Waste | Spotted C-40 Crusher 712 | -7/Waste | Allies destroyed C-40 Crusher 719 | -7/Waste | Allies destroyed C-40 Crusher 720 | -7/Waste | Spotted C-40 Crusher 724 | -7/Waste | Destroyed C-40 Crusher 726 | -7/Waste | Spotted C-40 Crusher 729 | -7/Waste | Allies destroyed C-40 Crusher 730 | -7/Waste | Destroyed C-40 Crusher 733 | -7/Waste | Destroyed C-40 Crusher 742 | -7/Waste | Lost 6 allies 753 | -7/Waste | Discovered new exit (range 12) 769 | -7/Waste | Identified exit to Factory 788 | -7/Waste | EMP discharged 798 | -7/Waste | Entered Factory 798 | -7/Factory | Accompanied by 12 allies 870 | -7/Factory | Garrison activated, responded to threat 901 | -7/Factory | Discovered new exit (range 16) 905 | -7/Factory | Identified exit to Factory 927 | -7/Factory | Lost 5 allies 950 | -7/Factory | Found Powered Armor 953 | -7/Factory | Found Powered Armor 1013 | -7/Factory | Noticed a derelict Sapper rigging charges 1139 | -7/Factory | Discovered exit to Factory (range 16) 1251 | -7/Factory | Identified exit to Lower Caves 1335 | -7/Factory | Build established: Hacker-Sprinter 1598 | -7/Factory | Search patrols dispatched 1645 | -7/Factory | Entered Lower Caves 1723 | -7/Lower Caves | Learned Factory emergency access door positions 1761 | -7/Lower Caves | Identified exit to Lower Caves 1934 | -7/Lower Caves | Encountered a Warlord checkpoint 2047 | -7/Lower Caves | Entered another Lower Caves area 2063 | -7/Lower Caves | Discovered exit to Factory (range 4) 2199 | -7/Lower Caves | Identified exit to Data Miner 2281 | -7/Lower Caves | Learned location of 1 exit from Proximity Caves 2411 | -7/Lower Caves | Build established: Sprinter 2420 | -7/Lower Caves | Spotted B-75 Beast 2631 | -7/Lower Caves | Entered Data Miner 2631 | -7/Data Miner | Discovered new exit (range 6) 2637 | -7/Data Miner | Met Data Miner 2651 | -7/Data Miner | Learned location of Section 7 (-3) 2651 | -7/Data Miner | Acquired the access code to Warlord's prototype stash 2654 | -7/Data Miner | Received God Mode back door access code from Data Miner 2668 | -7/Data Miner | Identified exit to Proximity Caves 2668 | -7/Data Miner | Entered Proximity Caves 2681 | -6/Proximity Caves | Learned Factory stockpile data 2717 | -6/Proximity Caves | Derelict sapper outpost attacked 2729 | -6/Proximity Caves | Spotter reported a threat 2739 | -6/Proximity Caves | Encountered a Derelict sapper outpost 2782 | -6/Proximity Caves | Spotter reported a threat 2990 | -6/Proximity Caves | Attracted the attention of an 0b10 outpost 3004 | -6/Proximity Caves | Entered Factory 3004 | -6/Factory | Evolved 2 slots: Utility x2 3061 | -6/Factory | Lost 5 parts (2n2u1w) 3103 | -6/Factory | Incoming investigation squad redirected 3148 | -6/Factory | Spotted B-75 Beast 3236 | -6/Factory | Identified exit to Lower Caves 3236 | -6/Factory | Identified exit to Extension 3236 | -6/Factory | Hacking Suite fried by hacking feedback 3319 | -6/Factory | Incoming investigation squad redirected 3337 | -6/Factory | Fabricated Adv. Signal Interpreter? 3344 | -6/Factory | Discovered new exit (range 15) 3346 | -6/Factory | Identified exit to Factory 3354 | -6/Factory | Search patrols dispatched 3375 | -6/Factory | Fabricated Exp. Propulsion Shielding? 3520 | -6/Factory | Sucked down chute 3520 | -6/Factory | Entered Waste 3527 | -6/Waste | Spotted C-40 Crusher 3532 | -6/Waste | Found Broken Adv. Powered Armor 3534 | -6/Waste | Spotted C-40 Crusher 3550 | -6/Waste | Spotted C-40 Crusher 3551 | -6/Waste | Spotted C-40 Crusher 3558 | -6/Waste | Spotted C-40 Crusher 3558 | -6/Waste | Spotted C-40 Crusher 3565 | -6/Waste | Discovered new exit (range 13) 3567 | -6/Waste | Identified exit to Factory 3567 | -6/Waste | Entered Factory 3576 | -6/Factory | Spotted B-75 Beast 3611 | -6/Factory | Discovered exit to Extension (range 7) 3751 | -6/Factory | Fabricated Adv. Powered Armor (x1) 3818 | -6/Factory | Found Prototype Launcher 3818 | -6/Factory | Identified Rocket Array 3842 | -6/Factory | Build established: Hacker-Scout 3880 | -6/Factory | Discovered exit to Factory (range 22) 3998 | -6/Factory | Fabricated Adv. Power Amplifier? 4147 | -6/Factory | Cargo convoy interrupted 4267 | -6/Factory | First assault squad dispatched 4295 | -6/Factory | Found Prototype Device 4295 | -6/Factory | Identified Exp. Thermal Shield 4344 | -6/Factory | Discovered exit to Factory (range 22) 4488 | -6/Factory | Fabricated Exp. Propulsion Shielding? 4539 | -6/Factory | Entered Extension 4557 | -6/Extension | Spotted B-75 Beast 4588 | -6/Extension | Build established: Hacker-Sprinter 4732 | -6/Extension | Rescued a captive Derelict 4801 | -6/Extension | Rescued a captive Derelict 4801 | -6/Extension | Rescued a captive Derelict 4807 | -6/Extension | Rescued a captive Derelict 4909 | -6/Extension | Allies destroyed B-75 Beast 4936 | -6/Extension | Lost 6 allies 4956 | -6/Extension | Rescued a captive Derelict 5162 | -6/Extension | Spotted B-75 Beast 5172 | -6/Extension | Destroyed B-75 Beast 5305 | -6/Extension | Rescued a captive Derelict 5319 | -6/Extension | Lost 5 allies 5341 | -6/Extension | Rescued a captive Derelict 5343 | -6/Extension | Rescued A7 5355 | -6/Extension | Discovered exit to Factory (range 10) 5355 | -6/Extension | Discovered new exit (range 6) 5362 | -6/Extension | Identified exit to Cetus 5483 | -6/Extension | Entered Cetus 5483 | -6/Cetus | Accompanied by 13 allies (A7) 5488 | -6/Cetus | Acquired a Cetus Manufacturing Module code from A7 5497 | -6/Cetus | Spotted Cetus Guard 5497 | -6/Cetus | Spotted Cetus Guard 5500 | -6/Cetus | Spotted Cetus Guard 5501 | -6/Cetus | Spotted Cetus Guard 5510 | -6/Cetus | Allies destroyed Cetus Guard 5511 | -6/Cetus | Allies destroyed Cetus Guard 5544 | -6/Cetus | Lost 4 allies 5562 | -6/Cetus | Started Cetus Manufacturing Module 5587 | -6/Cetus | Manufactured an Enhanced Grunt 5589 | -6/Cetus | Escorted A7 to Cetus Mainframe 5612 | -6/Cetus | Manufactured an Enhanced Grunt 5637 | -6/Cetus | Manufactured an Enhanced Grunt 5662 | -6/Cetus | Manufactured an Enhanced Grunt 5687 | -6/Cetus | Manufactured an Enhanced Grunt 5699 | -6/Cetus | Discovered new exit (range 22) 5777 | -6/Cetus | Spotted Cetus Guard 5777 | -6/Cetus | Spotted Cetus Guard 5777 | -6/Cetus | Spotted Cetus Guard 5783 | -6/Cetus | Allies destroyed Cetus Guard 5783 | -6/Cetus | Spotted Cetus Guard 5787 | -6/Cetus | Allies destroyed Cetus Guard 5788 | -6/Cetus | Allies destroyed Cetus Guard 5794 | -6/Cetus | Discovered exit to Factory (range 22) 5797 | -6/Cetus | Allies destroyed Cetus Guard 5805 | -6/Cetus | Met Revision 17 5829 | -6/Cetus | Build established: Commander-Mutant 5887 | -6/Cetus | Murdered A7 5889 | -6/Cetus | Extracted ID and sensor layout for unrecognized location from A7's data core 5914 | -6/Cetus | Entered Archives 5914 | -6/Archives | Accompanied by 12 allies 5959 | -6/Archives | Discovered exit to Factory (range 15) 5961 | -6/Archives | Discovered new exit (range 18) 6012 | -6/Archives | Entered Hub_04(d) 6012 | -6/Hub_04(d) | Accompanied by 9 allies 6014 | -6/Hub_04(d) | Discovered exit to Factory (range 16) 6186 | -6/Hub_04(d) | Discovered exit to Factory (range 21) 6219 | -6/Hub_04(d) | Build established: Commander-Sprinter 6301 | -6/Hub_04(d) | Learned Factory fabricator intel 6362 | -6/Hub_04(d) | First assault squad dispatched 6379 | -6/Hub_04(d) | Learned 12 Factory zone layouts 6384 | -6/Hub_04(d) | Discovered exit to Factory (range 19) 6396 | -6/Hub_04(d) | Network Hub disabled 6422 | -6/Hub_04(d) | Lost 4 allies 6423 | -6/Hub_04(d) | Incoming investigation squad redirected 6474 | -6/Hub_04(d) | Network Hub disabled 6474 | -6/Hub_04(d) | Spotted Lightning 6483 | -6/Hub_04(d) | Entered Factory 6483 | -5/Factory | Evolved 2 slots: Utility x2 6484 | -5/Factory | Identified exit to Upper Caves 6485 | -5/Factory | Loaded intel: 5 fabricator locations 6544 | -5/Factory | Repaired Adv. Gravity Neutralizer 6783 | -5/Factory | First assault squad dispatched 6792 | -5/Factory | Incoming investigation squad redirected 6879 | -5/Factory | Fabricated Imp. Surge Thruster (x2) 6894 | -5/Factory | Discovered new exit (range 21) 6949 | -5/Factory | Discovered new exit (range 8) 6972 | -5/Factory | Repaired Imp. Diametric Drive? 6988 | -5/Factory | Repaired Imp. Surge Thruster+? 7014 | -5/Factory | Incoming investigation squad redirected 7027 | -5/Factory | Discovered new exit (range 18) 7250 | -5/Factory | Incoming investigation squad redirected 7252 | -5/Factory | Fabricated Tri-rail Accelerator? 7271 | -5/Factory | Repaired Adv. Cooling System? 7302 | -5/Factory | Fabricated Exp. Targeting Computer? 7365 | -5/Factory | Incoming investigation squad redirected 7397 | -5/Factory | Central database locked down 7401 | -5/Factory | Entered Upper Caves 7420 | -5/Upper Caves | Encountered a Warlord checkpoint 7597 | -5/Upper Caves | Spotted B-75 Beast 7718 | -5/Upper Caves | Discovered new exit (range 15) 7721 | -5/Upper Caves | Build established: Machinist-Sprinter 7745 | -5/Upper Caves | Entered another Upper Caves area 7809 | -5/Upper Caves | Discovered new exit (range 17) 7886 | -5/Upper Caves | Learned Factory security intel 7889 | -5/Upper Caves | Learned 8 Factory zone layouts 7921 | -5/Upper Caves | Ambushed by wild Derelicts 8002 | -5/Upper Caves | Discovered new exit (range 5) 8019 | -5/Upper Caves | Entered Warlord 8029 | -5/Warlord | System corruption cleaned by Quarantine Array 8203 | -5/Warlord | Met Warlord 8215 | -5/Warlord | Visited the Vortex Lab 8218 | -5/Warlord | Found Prototype Energy Cannon 8218 | -5/Warlord | Identified Vortex Cannon 8221 | -5/Warlord | Warlord's base attacked by MAIN.C 8221 | -5/Warlord | Found Prototype Energy Gun 8221 | -5/Warlord | Identified Vortex Rifle 8277 | -5/Warlord | Opened Warlord's prototype stash 8278 | -5/Warlord | Found Prototype Processor 8278 | -5/Warlord | Identified Exp. Target Analyzer 8283 | -5/Warlord | Found Prototype Device 8283 | -5/Warlord | Identified Thermal Barrier 8320 | -5/Warlord | Found Ghost Barrier 8462 | -5/Warlord | Warlord forces counterattacked 8539 | -5/Warlord | Spotted Striker 8574 | -5/Warlord | Destroyed Striker 8580 | -5/Warlord | Lost 4 allies 8632 | -5/Warlord | Spotted Executioner 8632 | -5/Warlord | Spotted Striker 8639 | -5/Warlord | Destroyed Executioner 8683 | -5/Warlord | Lost 4 allies 8721 | -5/Warlord | Spotted Executioner 8767 | -5/Warlord | Lost 6 allies 8821 | -5/Warlord | Spotted Executioner 8822 | -5/Warlord | Spotted Executioner 8822 | -5/Warlord | Spotted Executioner 8827 | -5/Warlord | Destroyed Executioner 8837 | -5/Warlord | Destroyed Executioner 8850 | -5/Warlord | Found Prototype Processor 8850 | -5/Warlord | Identified Exp. Core Analyzer 8862 | -5/Warlord | Discovered new exit (range 8) 8863 | -5/Warlord | Entered Proximity Caves 8867 | -4/Proximity Caves | Lost 8 allies 8876 | -4/Proximity Caves | Spotted B-86 Titan 8898 | -4/Proximity Caves | Identified exit to Factory 8958 | -4/Proximity Caves | Entered Factory 8958 | -4/Factory | Evolved 2 slots: Propulsion x1, Weapon x1 8959 | -4/Factory | Identified exit to Upper Caves 9006 | -4/Factory | Found Prototype Processor 9006 | -4/Factory | Identified Exp. Terrain Scan Processor 9046 | -4/Factory | Discovered new exit (range 10) 9091 | -4/Factory | Identified exit to Research 9215 | -4/Factory | Incoming investigation squad redirected 9341 | -4/Factory | Fabricated Adv. Powered Armor? 9427 | -4/Factory | Build established: Scout 9438 | -4/Factory | Discovered exit to Research (range 18) 9550 | -4/Factory | Found Unknown Launcher 9550 | -4/Factory | Identified Gamma Bomb Array 9726 | -4/Factory | Garrison activated, responded to threat 9773 | -4/Factory | Repaired Broken Tri-rail Accelerator? 9952 | -4/Factory | Unchained authorized (GL-D0S) 10018 | -4/Factory | Build established: Ninja 10068 | -4/Factory | Fabricated Med. Storage Unit? 10097 | -4/Factory | Fabricated Lrn. Sensor Array? 10216 | -4/Factory | Fabricated Weapon Mount? 10272 | -4/Factory | Sucked down chute 10272 | -4/Factory | Entered Waste 10272 | -4/Waste | The area was eerily silent 10314 | -4/Waste | Discovered new exit (range 12) 10316 | -4/Waste | Found Prototype Processor 10348 | -4/Waste | Identified exit to Factory 10348 | -4/Waste | Entered Factory 10400 | -4/Factory | Repaired Broken Mic. Antimatter Reactor? 10412 | -4/Factory | Fabricated Imp. Surge Thruster? 10500 | -4/Factory | Discovered exit to Research (range 22) 10512 | -4/Factory | Discovered exit to Upper Caves (range 21) 10519 | -4/Factory | Unchained authorized (GL-D0S) 10847 | -4/Factory | Found Prototype Launcher 10847 | -4/Factory | Identified Tesla Bomb Launcher 10858 | -4/Factory | Repaired Tri-rail Accelerator? 10983 | -4/Factory | Fabricated Weapon Mount (x2) 11046 | -4/Factory | Fabricated Mni. Fusion Reactor (x1) 11098 | -4/Factory | First assault squad dispatched 11116 | -4/Factory | Adv. Hacking Suite fried by hacking feedback 11179 | -4/Factory | Entered Upper Caves 11278 | -4/Upper Caves | Build established: Machinist-Scout 11299 | -4/Upper Caves | Spotted B-86 Titan 11358 | -4/Upper Caves | Encountered a Warlord checkpoint 11359 | -4/Upper Caves | Identified exit to Upper Caves 11402 | -4/Upper Caves | Learned location of Testing (-2) 11419 | -4/Upper Caves | Found Alien Artifact 11419 | -4/Upper Caves | Identified Dimensional Node Initializer 11419 | -4/Upper Caves | Initialized slip node 11438 | -4/Upper Caves | Attracted the attention of an 0b10 checkpoint 11489 | -4/Upper Caves | Entered another Upper Caves area 11583 | -4/Upper Caves | Discovered new exit (range 13) 11640 | -4/Upper Caves | Identified exit to Zhirov 11653 | -4/Upper Caves | Entered Zhirov 11653 | -4/Zhirov | Discovered new exit (range 3) 11659 | -4/Zhirov | Met Zhirov 11664 | -4/Zhirov | Learned location of Quarantine (-3) 11664 | -4/Zhirov | Learned location of Command (-1) 11665 | -4/Zhirov | Zhirov requested help retrieving the SGEMP Prototype 11668 | -4/Zhirov | Found Alien Artifact 11668 | -4/Zhirov | Identified Integrated Reactor 11668 | -4/Zhirov | Installed Integrated Reactor, increased core energy generation (+10) 11693 | -4/Zhirov | Identified Exp. Armor Integrity Analyzer 11697 | -4/Zhirov | Found Alien Artifact 11749 | -4/Zhirov | Identified exit to Proximity Caves 11751 | -4/Zhirov | Entered Proximity Caves 12216 | -3/Proximity Caves | Spotter reported a threat 12254 | -3/Proximity Caves | Spotted B-86 Titan 12261 | -3/Proximity Caves | Discovered exit to Research (range 22) 12269 | -3/Proximity Caves | Entered Research 12269 | -3/Research | Evolved 2 slots: Propulsion x2 12458 | -3/Research | Discovered new exit (range 7) 12459 | -3/Research | Identified exit to Armory 12469 | -3/Research | Revision forces began assault on 0b10 12482 | -3/Research | Identified Transdimensional Reconstructor 12605 | -3/Research | Build established: Machinist-Ninja 12624 | -3/Research | Discovered new exit (range 22) 12628 | -3/Research | Identified exit to Research 12717 | -3/Research | Discovered exit to Research (range 21) 12737 | -3/Research | Spotted B-86 Titan 12876 | -3/Research | Found Prototype Processor 12876 | -3/Research | Identified Exp. Melee Analysis Suite 12965 | -3/Research | Central database locked down 12969 | -3/Research | Research terminal network offline 13024 | -3/Research | Found Prototype Processor 13024 | -3/Research | Identified Exp. Signal Interpreter 13062 | -3/Research | Spotted B-86 Titan 13113 | -3/Research | Found Prototype Device 13113 | -3/Research | Identified Exp. Thermal Defense Suite 13127 | -3/Research | Spotted Striker 13199 | -3/Research | Found Unknown Launcher 13199 | -3/Research | Identified Fusion Bomb Launcher 13227 | -3/Research | Found Prototype Launcher 13227 | -3/Research | Identified Hellfire Missile Launcher 13263 | -3/Research | Build established: Machinist-Scout 13307 | -3/Research | Found Gamma Bomb Array 13349 | -3/Research | Discovered new exit (range 6) 13350 | -3/Research | Identified exit to Quarantine 13350 | -3/Research | Entered Quarantine 13369 | -3/Quarantine | Cryocooling Duct disabled 13377 | -3/Quarantine | Central database locked down 13384 | -3/Quarantine | Ambient heat levels rising (+20) 13384 | -3/Quarantine | Non-combat units ordered to evacuate 13415 | -3/Quarantine | Found Alien Energy Cannon 13415 | -3/Quarantine | Identified Core Cannon 13457 | -3/Quarantine | Found Prototype Device 13457 | -3/Quarantine | Identified Exp. Focal Shield 13595 | -3/Quarantine | Found Alien Slashing Weapon 13634 | -3/Quarantine | Found Alien Artifact 13653 | -3/Quarantine | Found Dimensional Node Initializer 13655 | -3/Quarantine | Found Transdimensional Reconstructor 13676 | -3/Quarantine | Build established: Machinist-Ninja 13722 | -3/Quarantine | Spotted Fortress 13736 | -3/Quarantine | Discovered new exit (range 5) 13736 | -3/Quarantine | Discovered new exit (range 6) 13737 | -3/Quarantine | Identified exit to Protoforge 13737 | -3/Quarantine | Entered Protoforge 13742 | -3/Protoforge | Identified Subatomic Replicator 13742 | -3/Protoforge | Identified Sigix Broadsword 13849 | -3/Protoforge | Superfortress began startup sequence 13885 | -3/Protoforge | Spotted Hotshot 13909 | -3/Protoforge | Spotted Hotshot 13909 | -3/Protoforge | Spotted Hotshot 13974 | -3/Protoforge | Spotted Hotshot 13974 | -3/Protoforge | Spotted Hotshot 13974 | -3/Protoforge | Spotted Hotshot 13994 | -3/Protoforge | Spotted Hotshot 13994 | -3/Protoforge | Spotted Hotshot 14017 | -3/Protoforge | Discovered exit to Research (range 12) 14024 | -3/Protoforge | Initialized slip node 14032 | -3/Protoforge | Spotted B-86 Titan 14032 | -3/Protoforge | Spotted Hotshot 14079 | -3/Protoforge | Incoming assault squad redirected 14140 | -3/Protoforge | Spotted Hotshot 14146 | -3/Protoforge | Spotted Hotshot 14146 | -3/Protoforge | Spotted Immortal 14146 | -3/Protoforge | Spotted Immortal 14152 | -3/Protoforge | Spotted Hotshot 14154 | -3/Protoforge | Spotted Hotshot 14157 | -3/Protoforge | Destroyed Hotshot 14166 | -3/Protoforge | Destroyed Hotshot 14174 | -3/Protoforge | Destroyed Hotshot 14180 | -3/Protoforge | Destroyed Hotshot 14188 | -3/Protoforge | Spotted Hotshot 14193 | -3/Protoforge | Spotted Hotshot 14197 | -3/Protoforge | Destroyed Hotshot 14199 | -3/Protoforge | Spotted Hotshot 14206 | -3/Protoforge | Spotted Hotshot 14231 | -3/Protoforge | Destroyed Hotshot 14237 | -3/Protoforge | Destroyed Hotshot 14239 | -3/Protoforge | Destroyed Hotshot 14248 | -3/Protoforge | Destroyed Hotshot 14272 | -3/Protoforge | Spotted Decapitator 14272 | -3/Protoforge | Spotted Decapitator 14272 | -3/Protoforge | Spotted Decapitator 14272 | -3/Protoforge | Spotted Decapitator 14276 | -3/Protoforge | Destroyed Decapitator 14276 | -3/Protoforge | Destroyed Decapitator 14282 | -3/Protoforge | Destroyed Decapitator 14287 | -3/Protoforge | Destroyed Decapitator 14316 | -3/Protoforge | System corruption reached 10% 14346 | -3/Protoforge | Lost 3 parts (2n1w) 14366 | -3/Protoforge | Found Cep. Melee Reflex Suite 14367 | -3/Protoforge | Found Femtoactuators 14369 | -3/Protoforge | Found Cep. Weapon Articulator 14372 | -3/Protoforge | Found Femtoactuators 14383 | -3/Protoforge | Found Prototype Device 14383 | -3/Protoforge | Identified Crosscalibrator 14408 | -3/Protoforge | Forge Plexus network access discovered 14451 | -3/Protoforge | Found Cep. Rapid Grenade Launcher 14487 | -3/Protoforge | First assault squad dispatched 14516 | -3/Protoforge | Incoming assault squad redirected 14522 | -3/Protoforge | Destroyed Immortal 14541 | -3/Protoforge | Destroyed Immortal 14554 | -3/Protoforge | Found Exp. Jetlance 14562 | -3/Protoforge | Found Cep. Deflector Sword 14567 | -3/Protoforge | Found Cep. Heavy Railcannon 14766 | -3/Protoforge | Incoming assault squad redirected 14790 | -3/Protoforge | Spotted Decapitator 14790 | -3/Protoforge | Spotted Decapitator 14790 | -3/Protoforge | Spotted Decapitator 14790 | -3/Protoforge | Spotted V319-l 14795 | -3/Protoforge | Destroyed 7 combat bots 14802 | -3/Protoforge | Found Cep. Zero-point Core 14816 | -3/Protoforge | Destroyed Decapitator 14818 | -3/Protoforge | Destroyed Decapitator 14845 | -3/Protoforge | Destroyed V319-l 14878 | -3/Protoforge | Found Cep. Deflector Sword 14918 | -3/Protoforge | Found Cep. Antigrav Storage Unit 14933 | -3/Protoforge | Spotted Decapitator 14933 | -3/Protoforge | Spotted Decapitator 14933 | -3/Protoforge | Spotted Decapitator 14933 | -3/Protoforge | Spotted Decapitator 14937 | -3/Protoforge | Destroyed Decapitator 14937 | -3/Protoforge | Destroyed Decapitator 14940 | -3/Protoforge | Destroyed Decapitator 14940 | -3/Protoforge | Destroyed Decapitator 14969 | -3/Protoforge | Found Cep. Combat Aerolev Unit 14983 | -3/Protoforge | Found Faulty Cep. Gyrokinetic System 14995 | -3/Protoforge | Found Cep. Combat Aerolev Unit 14997 | -3/Protoforge | Found Faulty Cep. Combat Aerolev Unit 14998 | -3/Protoforge | Found Cep. Gyrokinetic System 15004 | -3/Protoforge | Spotted V090-x 15010 | -3/Protoforge | Destroyed V090-x 15016 | -3/Protoforge | Found Cep. Gyrokinetic System 15024 | -3/Protoforge | Found Cep. NT7 Matterbank 15061 | -3/Protoforge | Spotted Immortal 15065 | -3/Protoforge | Spotted Immortal 15120 | -3/Protoforge | Destroyed Immortal 15205 | -3/Protoforge | Destroyed Immortal 15224 | -3/Protoforge | Spotted V037-u 15226 | -3/Protoforge | Destroyed V037-u 15236 | -3/Protoforge | Spotted V789-p 15238 | -3/Protoforge | Found Prototype Device 15238 | -3/Protoforge | Identified Exp. EM Disruption Field 15245 | -3/Protoforge | Used Subatomic Replicator to replicate Faulty Cep. Phase Shift Module 15246 | -3/Protoforge | Found Faulty Cep. Phase Shift Module 15251 | -3/Protoforge | Found Adv. Force Booster 15256 | -3/Protoforge | Found Faulty Cep. Reaction Jets 15257 | -3/Protoforge | Found Faulty Cep. Energy Mantle 15261 | -3/Protoforge | Found Cep. Energy Mantle 15264 | -3/Protoforge | Found Faulty Cep. Projectile Intercept Suite 15266 | -3/Protoforge | Found Cep. Projectile Intercept Suite 15275 | -3/Protoforge | Found Cep. RG22 Armor 15280 | -3/Protoforge | Spotted V564-r 15285 | -3/Protoforge | Found Faulty Cep. Reaction Jets 15288 | -3/Protoforge | Found Faulty Cep. RG22 Armor 15314 | -3/Protoforge | Destroyed V564-r 15325 | -3/Protoforge | Destroyed V789-p 15331 | -3/Protoforge | Found Prototype Processor 15331 | -3/Protoforge | Identified Spectral Analyzer 15335 | -3/Protoforge | Found Cep. Gyrokinetic System 15344 | -3/Protoforge | Found Adv. Powered Armor 15346 | -3/Protoforge | Found Cep. Matter Streamer 15370 | -3/Protoforge | Found Cep. Gyrokinetic System 15575 | -3/Protoforge | Found Cep. Melee Reflex Suite 15581 | -3/Protoforge | Found Cep. Weapon Articulator 15583 | -3/Protoforge | Found Faulty Cep. Melee Reflex Suite 15673 | -3/Protoforge | Found Cep. Chromion Battery 15681 | -3/Protoforge | Found Cep. NT7 Matterbank 15892 | -3/Protoforge | Destroyed 7 combat bots 16009 | -3/Protoforge | Spotted Hotshot 16010 | -3/Protoforge | Spotted Hotshot 16010 | -3/Protoforge | Spotted Hotshot 16012 | -3/Protoforge | Spotted Hotshot 16025 | -3/Protoforge | Destroyed Hotshot 16025 | -3/Protoforge | Destroyed Hotshot 16027 | -3/Protoforge | Destroyed Hotshot 16029 | -3/Protoforge | Destroyed Hotshot 16046 | -3/Protoforge | Lost 3 parts (1n1u1w) 16050 | -3/Protoforge | Destroyed 9 combat bots 16070 | -3/Protoforge | Additional patrols dispatched to research labs 16080 | -3/Protoforge | Found Cep. Navigation Harness 16083 | -3/Protoforge | Found Transdimensional Reconstructor 16109 | -3/Protoforge | Spotted AP7-3 16109 | -3/Protoforge | Spotted AP7-3 16159 | -3/Protoforge | Destroyed 10 combat bots 16282 | -3/Protoforge | Destroyed AP7-3 16289 | -3/Protoforge | Lost 4 parts (1p1u2w) 16310 | -3/Protoforge | Destroyed AP7-3 16357 | -3/Protoforge | System corruption reached 30% 16383 | -3/Protoforge | Found Prototype Device 16383 | -3/Protoforge | Identified Cep. Cloak Mesh 16386 | -3/Protoforge | Found Cep. Cloak Mesh 16389 | -3/Protoforge | Found Faulty Cep. Cloak Mesh 16395 | -3/Protoforge | Found Faulty Cep. Impact Drone Bay 16398 | -3/Protoforge | Found Faulty Cep. Impact Drone Bay 16402 | -3/Protoforge | Found Cep. Dimensional Manipulator 16470 | -3/Protoforge | Found Cld. Directed Potential Cannon 16474 | -3/Protoforge | Incoming assault squad redirected 16491 | -3/Protoforge | Found Faulty Exp. Active Sensor Suite 16495 | -3/Protoforge | Found Faulty Exp. Active Sensor Suite 16503 | -3/Protoforge | Incoming assault squad redirected 16568 | -3/Protoforge | Found Exp. Jetlance 16581 | -3/Protoforge | Spotted V152-t 16582 | -3/Protoforge | Found Exp. Jetlance 16585 | -3/Protoforge | Destroyed V152-t 16588 | -3/Protoforge | Found Cep. Combat Aerolev Unit 16592 | -3/Protoforge | Found Exp. Armor Integrity Analyzer 16644 | -3/Protoforge | Incoming assault squad redirected 16664 | -3/Protoforge | Found Cep. Combat Aerolev Unit 16709 | -3/Protoforge | Core integrity fell below 50% 16747 | -3/Protoforge | Destroyed 8 combat bots 16767 | -3/Protoforge | Spotted V709-h 16767 | -3/Protoforge | Spotted V811-m 16767 | -3/Protoforge | Spotted V861-d 16771 | -3/Protoforge | Spotted V478-o 16801 | -3/Protoforge | Spotted V148-b 16801 | -3/Protoforge | Spotted V748-m 16801 | -3/Protoforge | Spotted V319-x 16829 | -3/Protoforge | Found Exp. Terror Saw 16836 | -3/Protoforge | Found Exp. Terror Saw 16858 | -3/Protoforge | Found Cep. Weapon Articulator 16967 | -3/Protoforge | Found Cep. Weapon Articulator 16996 | -3/Protoforge | Spotted Overlord 16996 | -3/Protoforge | Spotted AP7-3 17003 | -3/Protoforge | Incoming assault squad redirected 17005 | -3/Protoforge | Incoming assault squad redirected 17006 | -3/Protoforge | Found Faulty Cep. Antimissile System 17008 | -3/Protoforge | Found Faulty Cep. Antimissile System 17014 | -3/Protoforge | Warped through subspace to slip node 17024 | -3/Protoforge | Entered Research 17024 | -2/Research | Warlord forces began assault on 0b10 17024 | -2/Research | Evolved 2 slots: Power x1, Utility x1 17053 | -2/Research | Lost 6 parts (1p1n1u3w) 17134 | -2/Research | Research machine network offline 17305 | -2/Research | Met up with Warlord 17450 | -2/Research | Spotted Striker 17453 | -2/Research | Spotted Striker 17490 | -2/Research | Lost 4 allies 17521 | -2/Research | Found Imp. Powered Armor 17525 | -2/Research | Discovered new exit (range 13) 17550 | -2/Research | Identified exit to Testing 17561 | -2/Research | Borebot progress halted 17636 | -2/Research | Build established: Scavenger-Ninja 17667 | -2/Research | Borebot progress halted 17680 | -2/Research | Found Prototype Device 17680 | -2/Research | Identified Exp. ECM Suite 17691 | -2/Research | Discovered new exit (range 23) 17698 | -2/Research | Identified exit to Access 17740 | -2/Research | Spotted B-90 Cyclops 17795 | -2/Research | Borebot progress halted 18171 | -2/Research | Spotted B-90 Cyclops 18186 | -2/Research | Discovered exit to Testing (range 13) 18215 | -2/Research | Spotted Executioner 18528 | -2/Research | Given Cave Seal Controls access code 18607 | -2/Research | Entered Testing 18649 | -2/Testing | Found Prototype Energy Cannon 18649 | -2/Testing | Identified Hpw. Disruptor Cannon 18665 | -2/Testing | Spotted PH-0PIE7AHPAM 18698 | -2/Testing | Found Prototype Protection 18701 | -2/Testing | Found Prototype Protection 18701 | -2/Testing | Identified Hvy. Regenerative Plating (x2) 18737 | -2/Testing | Spotted Striker 18737 | -2/Testing | Spotted Striker 18799 | -2/Testing | Scanned by Researcher 18910 | -2/Testing | Protovariant out of control (PP-NPMLPB6L1W) 18998 | -2/Testing | Build established: Ninja 19052 | -2/Testing | Entered Access 19052 | -1/Access | Evolved 2 slots: Power x1, Utility x1 19213 | -1/Access | Unchained authorized (GL-D0S) 19297 | -1/Access | Spotted B-99 Colossus 19437 | -1/Access | Warped through subspace 19468 | -1/Access | Lost 3 parts (1p1n1w) 19508 | -1/Access | High security lockdown imminent 19520 | -1/Access | Destroyed 11 combat bots 19551 | -1/Access | Lost 3 parts (1p2u) 19588 | -1/Access | High security lockdown engaged 19654 | -1/Access | Lost 3 parts (1p2u) 19833 | -1/Access | Found Prototype Launcher 19833 | -1/Access | Identified Ragnarok Missile Launcher 19912 | -1/Access | Found Exp. EM Disruption Field 19922 | -1/Access | Spotted B-99 Colossus 19922 | -1/Access | Spotted B-99 Colossus 19984 | -1/Access | Spotted Investigator 19988 | -1/Access | Garrison activated, responded to threat 19989 | -1/Access | Spotted Striker 19989 | -1/Access | Spotted Executioner 20006 | -1/Access | Core integrity fell below 50% 20007 | -1/Access | Allies destroyed Striker 20010 | -1/Access | Allies destroyed B-99 Colossus 20013 | -1/Access | Found Corrupted Prototype Ballistic Gun 20013 | -1/Access | Identified Multirail 20014 | -1/Access | System corruption reached 10% 20028 | -1/Access | Allies destroyed B-99 Colossus 20029 | -1/Access | Allies destroyed Investigator 20036 | -1/Access | Allies destroyed Executioner 20049 | -1/Access | Lost 14 parts (3p6n1u4w) 20062 | -1/Access | Spotted Executioner 20062 | -1/Access | Spotted Executioner 20062 | -1/Access | Spotted Striker 20062 | -1/Access | Spotted Executioner 20065 | -1/Access | Self-destructed Last Messages --------------- payload. 20062_ Executioner unfolds itself. 20062_ M-36 Artificer unfolds itself. 20062_ Executioner knocked back. 20062_ M-36 Artificer system corrupted by crushing effect. 20062_ C-45 Heavy ARC bursts open, deploying its payload. 20062_ P-80 Master unfolds itself. 20063_ Slug penetrates G-73 Enforcer. 20063_ Slug penetrates Wall. 20063_ Destroyed Adv. Heat Sink. 20063_ G-73 Enforcer system corrupted by crushing effect. 20063_ G-73 Enforcer knocked back. 20064_ Acquired 6 matter. 20064_ G-73 Enforcer system terminally corrupted. 20064_ Slug penetrates Earth. 20064_ Slug penetrates Wall. Map ----- +----------------------------------------------------+ | ??????????????????????????????????# | | ??????????????????????????????????# ### | | ??????????????????????????????????# #?? | | ??????????????????????????????????# #?? | | ??????????????????????????????????# "" #?? | | ??????????????????????????????????# "" #?? | | ??????????????????????????????????# """""" #?? | | ??????????????????????????????????# """""" #?? | | ??????????????????????????????????# "" #?? | | ?????????????????????????????????## "" #?? | | ?????????????????????????????????#"#############?? | | ????????????????????????????????##########???????? | | ???????????????????###########??# ###????## | | ???????????????????#! !! #??# ! # ?????#" | | ???????????????????# !=* !#??# ##?????# | | ??????????########## !] #### ##????# | | ??????? ?? # ### #????# | | ??????# # # # = ##????#% | | ??????# # ! [ ## # ##???# | | ??????# ! #! ### [ #??## | | ??????# # % #? [ = #??#% | | ??????# ####;######;### # ####### | | ??????# "" # %!*n!!/% ! [ " | | ??????# "" # [gm=%!!%=%% %! [ [ | | ???????? """""" # =[=!!!%!! | % " | | ??????????"""""" # % !@!%%[ % !# # #### | | ????????????"" # ] #"% | | ?????????????? # m % # | | ################+### # | | # % %[ # | | # E =% " | | ! # =%=# ## | | # #####K############## ; ## | | # #?? YE??????# ?# # ### | | # #?mE ????????# ?# ##+########?? | | + # " ?Y??????# # #????????? | | # # Y"??Yp?????# # #????????? | | # # pG??????? # + #????????? | | ! # # ?????? #! ####+####?????? | | # # ???? # ?# #?????? | | # # ??? #####??# #?????? | | #######+##### #?? = #??????# #?????? | | ####### ##### # #??????# ###???? | | + #??????# # ##??? | | # #??????# ## ##?? | | #??###########??????##########"### | | #############+#####??????????????????????## ## | | #???????# #???????????????????????#### | | #???????# #????????????????????????##" | | +####????# " #?????????????????????????## | +----------------------------------------------------+ Best States ------------- Heat Dissipation 88 Energy Generation 77 Energy Capacity 2140 Matter Stores 300 Matter Capacity 300 Sight Range 24 Robot Scan Range 20 Terrain Scan Density 10 ECM Strength 1 Jamming Range 16 Cloak Strength 9 Power Amplification 40 Additional Mass Support 20 Armor Coverage 625 Resistance: EM 25 Propulsion Shielding 90 Utility Shielding 90 Point Defense Rating 480 Projectile Deflection 15 Weapon Cycling 20 Melee Speed Boost 50 Phase Shifting 25 Evasion (%) 88 Targeting Accuracy 42 Melee Accuracy 20 Target Analysis 10 Core Analysis 8 Armor Integrity Analysis 50 Recoil Reduction 1 Particle Charging 30 Force Boost 40 Offensive Hacking 28 Defensive Hacking 10 Authchip Count 2 Trap Extractor Capacity 4 Item Schematics ----------------- Imp. Cooling System | -7/Factory | Hacked Med. Storage Unit | -7/Factory | Hacked Powered Armor | -7/Factory | Scanalyzed Mic. Nuclear Core | -7/Factory | Scanalyzed Adv. Power Amplifier | -7/Factory | Scanalyzed Machine Analyzer | -7/Factory | Scanalyzed Imp. Grenade Launcher | -7/Factory | Scanalyzed Combat Drone Bay | -7/Data Miner | Free Lgt. Regenerative Plating | -7/Data Miner | Free Biomechanical Wings | -7/Data Miner | Free Exp. Propulsion Shielding | -7/Data Miner | Free Ion Burst Cannon | -7/Data Miner | Free Linear Gravjet | -7/Data Miner | Free Adv. Trap Extractor | -7/Data Miner | Free Disruptor Cannon | -7/Data Miner | Free Cld. Cesium-ion Thruster | -6/Factory | Scanalyzed Cld. VTOL Module | -6/Factory | Hacked Adv. Reaction Control System | -6/Factory | Hacked Adv. Powered Armor | -6/Factory | Scanalyzed ECM Suite | -6/Factory | Scanalyzed Cld. Plasma Cannon | -6/Factory | Scanalyzed Imp. Hacking Suite | -6/Factory | Scanalyzed HERF Cannon | -6/Factory | Hacked Rocket Array | -6/Factory | Scanalyzed Mni. Fusion Reactor | -6/Factory | Scanalyzed Adv. Melee Analysis Suite | -6/Hub_04(d) | Hacked Tri-rail Accelerator | -6/Hub_04(d) | Hacked Centrium Medium Armor Plating | -5/Factory | Scanalyzed Adv. Sensor Array | -5/Factory | Scanalyzed Transmission Jammer | -5/Factory | Scanalyzed Exp. Targeting Computer | -5/Factory | Hacked Weapon Mount | -5/Factory | Hacked Imp. Surge Thruster | -5/Factory | Hacked Exp. Utility Shielding | -5/Factory | Hacked Exp. Weapon Shielding | -5/Factory | Hacked Adv. Hacking Suite | -5/Factory | Hacked Adv. System Shield | -5/Factory | Scanalyzed Power Sword | -5/Factory | Scanalyzed Nuclear Pulse Array | -4/Factory | Hacked Lrn. Sensor Array | -4/Factory | Hacked Assault Drone Bay | -4/Zhirov | Free Exp. Heat Sink | -4/Zhirov | Free Exp. Optical Array | -4/Zhirov | Free Imp. Arc Thrower | -4/Zhirov | Free Exp. Power Amplifier | -3/Research | Scanalyzed Imp. Reaction Control System | -3/Research | Scanalyzed Mni. Smartbomb Launcher | -3/Protoforge | Archive Coolant Network | -3/Protoforge | Archive Exp. Hacking Suite | -3/Protoforge | Archive Exp. Coolant Injector | -3/Protoforge | Archive Exp. Signal Interpreter | -3/Protoforge | Archive Tactical Quantum Warhead | -3/Protoforge | Archive Exp. Thermal Generator | -3/Protoforge | Archive Hvy. Hardcell Cannon | -3/Protoforge | Archive Cld. Antigrav System | -3/Protoforge | Archive Lrn. Phase Cannon | -3/Protoforge | Archive Diametric Drive | -2/Testing | Archive Neutron Missile Launcher | -2/Testing | Archive Thermal Barrier | -2/Testing | Archive Robot Schematics ------------------ A-15 Conveyor | -7/Data Miner | Free H-55 Commando | -7/Data Miner | Free G-50 Soldier | -7/Data Miner | Free E-15 Imp | -7/Data Miner | Free S-27 Virus | -7/Data Miner | Free B-60 Warrior | -7/Data Miner | Free G-67 Veteran | -3/Protoforge | Archive Y-72 Warden | -3/Protoforge | Archive R-06 Scavenger | -3/Protoforge | Archive R-10 Processor | -2/Testing | Archive Fabricated ------------ Adv. Signal Interpreter | x2 | -6/Factory | Preloaded Exp. Propulsion Shielding | x1 | -6/Factory | Authchip Adv. Powered Armor | x1 | -6/Factory | Authchip Adv. Power Amplifier | x2 | -6/Factory Exp. Propulsion Shielding | x1 | -6/Factory Imp. Surge Thruster | x2 | -5/Factory | Authchip Tri-rail Accelerator | x1 | -5/Factory | Authchip Exp. Targeting Computer | x1 | -5/Factory | Authchip Adv. Powered Armor | x1 | -4/Factory | Authchip Med. Storage Unit | x1 | -4/Factory Lrn. Sensor Array | x2 | -4/Factory Weapon Mount | x2 | -4/Factory Imp. Surge Thruster | x2 | -4/Factory | Authchip Weapon Mount | x2 | -4/Factory | Authchip Mni. Fusion Reactor | x1 | -4/Factory | Authchip Repaired ---------- Adv. Gravity Neutralizer | 5% | -5/Factory Imp. Diametric Drive | 27% | -5/Factory Imp. Surge Thruster | 15% | -5/Factory Adv. Cooling System | 1% | -5/Factory Tri-rail Accelerator | 24% | -4/Factory | Broken Mic. Antimatter Reactor | 11% | -4/Factory | Broken Tri-rail Accelerator | 58% | -4/Factory Studied --------- Flight Unit | -8/Materials | Hacked Greatsword | -7/Factory | Hacked Imp. Grenade Launcher | -7/Factory | Hacked Mic. Nuclear Core | -7/Factory | Hacked Xenon Bombardment Thruster | -7/Factory | Hacked Imp. Surge Thruster | -6/Factory | Hacked Lrn. Missile Launcher | -6/Factory | Hacked Nuclear Pulse Thruster | -6/Factory | Hacked Remote Datajack | -6/Factory | Hacked Spear | -6/Factory | Hacked Power Sword | -6/Factory | Hacked Field Propulsion Drive | -5/Factory | Hacked Q-thruster | -3/Research | Hacked Field Propulsion Array | -3/Research | Hacked Enh. Force Lance | -3/Research | Hacked Impulse Thruster Array | -3/Quarantine | Hacked Linear Accelerator | -2/Testing | Hacked Cmb. Linear Gravjet | -2/Testing | Hacked Quantum Reactor | -1/Access | Hacked Lgt. Quantum Reactor | -1/Access | Hacked Alien Tech Used ----------------- Dimensional Node Initializer Integrated Reactor Core Cannon Sigix Broadsword Subatomic Replicator Transdimensional Reconstructor Achievements -------------- I'm Outta Here, Maybe Challenges ------------ None Game ------ Seed PitchforkReinforcedPendant Manual? 0 Play Time 08:06:18 Cumulative 532.5 hours Start 2025.11.06 @ 23:50:35 End 2025.11.08 @ 06:03:03 Sessions 8 Manual Loads 0 Difficulty Rogue Special Mode None Game No. 290 Rogue 290 Adventurer 0 Explorer 0 Win Type - Total 22 Types 13/1/5/1/0/0/0/1/1/0 Lore% 94 Gallery% 88 Achievement% 79 Wizard Run 0 Options --------- Layout 2 ASCII 0 Keyboard 1 Movement Vi Keybinds 0 Fullscreen 1 Font 28/Terminus Map View 50x52 Zoom Use 0% Tactical HUD 1 Map Filters NONE Filters NONE Steam 1 RUN: 5d7e83c7-8f63-406e-b9c4-1a8d3393ab2a